{"text_format":"3","workbook":"xlsx","n_sheets":12,"sheets":["JAN","FEB","MAR","APR","MEI","JUN","JUL","AGU","SEP","OKT","NOV","DES"],"not_rendered":{"defined_names":40},"read":"whole","date_system":"1900"}

{"sheet":"JAN","index":0,"n_rows":20,"n_cols":9,"rows_kept":20,"merged":[[16,2,17,2],[16,3,17,3],[17,4,19,8]]}
[null,"JAN","MGG",{"$f":"UPPER(TEXT(D3,\"aaa\"))","v":"SEN"},"SEL","RAB","KAM","JUM","SAB"]
[null,{"$f":"YEAR(TODAY())","v":2018}]
[null,null,{"$f":"DaysAndWeeks+DATE(CalendarYear,1,1)-WEEKDAY(DATE(CalendarYear,1,1),(WeekStart=\"SEN\")+1)+1","v":"2017-12-31"},"2018-01-01","2018-01-02","2018-01-03","2018-01-04","2018-01-05","2018-01-06"]
[null,null,{"$f":"IF(DAY(CalendarDay)=1,CONCATENATE(\"Minggu \",WEEKNUM(CalendarDay),\"/Hari \",CalendarDay-DATE(YEAR(CalendarDay),1,0)),CONCATENATE(\"Hari \",CalendarDay-DATE(YEAR(CalendarDay),1,0)))","v":"Hari 365"},{"$f":"IF(DAY(CalendarDay)=1,CONCATENATE(\"Minggu \",WEEKNUM(CalendarDay),\"/Hari \",CalendarDay-DATE(YEAR(CalendarDay),1,0)),CONCATENATE(\"Hari \",CalendarDay-DATE(YEAR(CalendarDay),1,0)))","v":"Minggu 1/Hari 1"},{"$f":"IF(DAY(CalendarDay)=1,CONCATENATE(\"Minggu \",WEEKNUM(CalendarDay),\"/Hari \",CalendarDay-DATE(YEAR(CalendarDay),1,0)),CONCATENATE(\"Hari \",CalendarDay-DATE(YEAR(CalendarDay),1,0)))","v":"Hari 2"},{"$f":"IF(DAY(CalendarDay)=1,CONCATENATE(\"Minggu \",WEEKNUM(CalendarDay),\"/Hari \",CalendarDay-DATE(YEAR(CalendarDay),1,0)),CONCATENATE(\"Hari \",CalendarDay-DATE(YEAR(CalendarDay),1,0)))","v":"Hari 3"},{"$f":"IF(DAY(CalendarDay)=1,CONCATENATE(\"Minggu \",WEEKNUM(CalendarDay),\"/Hari \",CalendarDay-DATE(YEAR(CalendarDay),1,0)),CONCATENATE(\"Hari \",CalendarDay-DATE(YEAR(CalendarDay),1,0)))","v":"Hari 4"},{"$f":"IF(DAY(CalendarDay)=1,CONCATENATE(\"Minggu \",WEEKNUM(CalendarDay),\"/Hari \",CalendarDay-DATE(YEAR(CalendarDay),1,0)),CONCATENATE(\"Hari \",CalendarDay-DATE(YEAR(CalendarDay),1,0)))","v":"Hari 5"},{"$f":"IF(DAY(CalendarDay)=1,CONCATENATE(\"Minggu \",WEEKNUM(CalendarDay),\"/Hari \",CalendarDay-DATE(YEAR(CalendarDay),1,0)),CONCATENATE(\"Hari \",CalendarDay-DATE(YEAR(CalendarDay),1,0)))","v":"Hari 6"}]
[]
[null,null,{"$f":"DaysAndWeeks+DATE(CalendarYear,1,1)-WEEKDAY(DATE(CalendarYear,1,1),(WeekStart=\"SEN\")+1)+8","v":"2018-01-07"},"2018-01-08","2018-01-09","2018-01-10","2018-01-11","2018-01-12","2018-01-13"]
[null,null,{"$f":"IF(WEEKDAY(CalendarDay)=WeekStartValue,CONCATENATE(\"Minggu \",WEEKNUM(CalendarDay),\"/Hari \",CalendarDay-DATE(YEAR(CalendarDay),1,0)),CONCATENATE(\"Hari \",CalendarDay-DATE(YEAR(CalendarDay),1,0)))","v":"Minggu 2/Hari 7"},{"$f":"IF(WEEKDAY(CalendarDay)=WeekStartValue,CONCATENATE(\"Minggu \",WEEKNUM(CalendarDay),\"/Hari \",CalendarDay-DATE(YEAR(CalendarDay),1,0)),CONCATENATE(\"Hari \",CalendarDay-DATE(YEAR(CalendarDay),1,0)))","v":"Hari 8"},{"$f":"IF(WEEKDAY(CalendarDay)=WeekStartValue,CONCATENATE(\"Minggu \",WEEKNUM(CalendarDay),\"/Hari \",CalendarDay-DATE(YEAR(CalendarDay),1,0)),CONCATENATE(\"Hari \",CalendarDay-DATE(YEAR(CalendarDay),1,0)))","v":"Hari 9"},{"$f":"IF(WEEKDAY(CalendarDay)=WeekStartValue,CONCATENATE(\"Minggu \",WEEKNUM(CalendarDay),\"/Hari \",CalendarDay-DATE(YEAR(CalendarDay),1,0)),CONCATENATE(\"Hari \",CalendarDay-DATE(YEAR(CalendarDay),1,0)))","v":"Hari 10"},{"$f":"IF(WEEKDAY(CalendarDay)=WeekStartValue,CONCATENATE(\"Minggu \",WEEKNUM(CalendarDay),\"/Hari \",CalendarDay-DATE(YEAR(CalendarDay),1,0)),CONCATENATE(\"Hari \",CalendarDay-DATE(YEAR(CalendarDay),1,0)))","v":"Hari 11"},{"$f":"IF(WEEKDAY(CalendarDay)=WeekStartValue,CONCATENATE(\"Minggu \",WEEKNUM(CalendarDay),\"/Hari \",CalendarDay-DATE(YEAR(CalendarDay),1,0)),CONCATENATE(\"Hari \",CalendarDay-DATE(YEAR(CalendarDay),1,0)))","v":"Hari 12"},{"$f":"IF(WEEKDAY(CalendarDay)=WeekStartValue,CONCATENATE(\"Minggu \",WEEKNUM(CalendarDay),\"/Hari \",CalendarDay-DATE(YEAR(CalendarDay),1,0)),CONCATENATE(\"Hari \",CalendarDay-DATE(YEAR(CalendarDay),1,0)))","v":"Hari 13"}]
[]
[null,null,{"$f":"DaysAndWeeks+DATE(CalendarYear,1,1)-WEEKDAY(DATE(CalendarYear,1,1),(WeekStart=\"SEN\")+1)+15","v":"2018-01-14"},"2018-01-15","2018-01-16","2018-01-17","2018-01-18","2018-01-19","2018-01-20"]
[null,null,{"$f":"IF(WEEKDAY(CalendarDay)=WeekStartValue,CONCATENATE(\"Minggu \",WEEKNUM(CalendarDay),\"/Hari \",CalendarDay-DATE(YEAR(CalendarDay),1,0)),CONCATENATE(\"Hari \",CalendarDay-DATE(YEAR(CalendarDay),1,0)))","v":"Minggu 3/Hari 14"},{"$f":"IF(WEEKDAY(CalendarDay)=WeekStartValue,CONCATENATE(\"Minggu \",WEEKNUM(CalendarDay),\"/Hari \",CalendarDay-DATE(YEAR(CalendarDay),1,0)),CONCATENATE(\"Hari \",CalendarDay-DATE(YEAR(CalendarDay),1,0)))","v":"Hari 15"},{"$f":"IF(WEEKDAY(CalendarDay)=WeekStartValue,CONCATENATE(\"Minggu \",WEEKNUM(CalendarDay),\"/Hari \",CalendarDay-DATE(YEAR(CalendarDay),1,0)),CONCATENATE(\"Hari \",CalendarDay-DATE(YEAR(CalendarDay),1,0)))","v":"Hari 16"},{"$f":"IF(WEEKDAY(CalendarDay)=WeekStartValue,CONCATENATE(\"Minggu \",WEEKNUM(CalendarDay),\"/Hari \",CalendarDay-DATE(YEAR(CalendarDay),1,0)),CONCATENATE(\"Hari \",CalendarDay-DATE(YEAR(CalendarDay),1,0)))","v":"Hari 17"},{"$f":"IF(WEEKDAY(CalendarDay)=WeekStartValue,CONCATENATE(\"Minggu \",WEEKNUM(CalendarDay),\"/Hari \",CalendarDay-DATE(YEAR(CalendarDay),1,0)),CONCATENATE(\"Hari \",CalendarDay-DATE(YEAR(CalendarDay),1,0)))","v":"Hari 18"},{"$f":"IF(WEEKDAY(CalendarDay)=WeekStartValue,CONCATENATE(\"Minggu \",WEEKNUM(CalendarDay),\"/Hari \",CalendarDay-DATE(YEAR(CalendarDay),1,0)),CONCATENATE(\"Hari \",CalendarDay-DATE(YEAR(CalendarDay),1,0)))","v":"Hari 19"},{"$f":"IF(WEEKDAY(CalendarDay)=WeekStartValue,CONCATENATE(\"Minggu \",WEEKNUM(CalendarDay),\"/Hari \",CalendarDay-DATE(YEAR(CalendarDay),1,0)),CONCATENATE(\"Hari \",CalendarDay-DATE(YEAR(CalendarDay),1,0)))","v":"Hari 20"}]
[]
[null,null,{"$f":"DaysAndWeeks+DATE(CalendarYear,1,1)-WEEKDAY(DATE(CalendarYear,1,1),(WeekStart=\"SEN\")+1)+22","v":"2018-01-21"},"2018-01-22","2018-01-23","2018-01-24","2018-01-25","2018-01-26","2018-01-27"]
[null,null,{"$f":"IF(WEEKDAY(CalendarDay)=WeekStartValue,CONCATENATE(\"Minggu \",WEEKNUM(CalendarDay),\"/Hari \",CalendarDay-DATE(YEAR(CalendarDay),1,0)),CONCATENATE(\"Hari \",CalendarDay-DATE(YEAR(CalendarDay),1,0)))","v":"Minggu 4/Hari 21"},{"$f":"IF(WEEKDAY(CalendarDay)=WeekStartValue,CONCATENATE(\"Minggu \",WEEKNUM(CalendarDay),\"/Hari \",CalendarDay-DATE(YEAR(CalendarDay),1,0)),CONCATENATE(\"Hari \",CalendarDay-DATE(YEAR(CalendarDay),1,0)))","v":"Hari 22"},{"$f":"IF(WEEKDAY(CalendarDay)=WeekStartValue,CONCATENATE(\"Minggu \",WEEKNUM(CalendarDay),\"/Hari \",CalendarDay-DATE(YEAR(CalendarDay),1,0)),CONCATENATE(\"Hari \",CalendarDay-DATE(YEAR(CalendarDay),1,0)))","v":"Hari 23"},{"$f":"IF(WEEKDAY(CalendarDay)=WeekStartValue,CONCATENATE(\"Minggu \",WEEKNUM(CalendarDay),\"/Hari \",CalendarDay-DATE(YEAR(CalendarDay),1,0)),CONCATENATE(\"Hari \",CalendarDay-DATE(YEAR(CalendarDay),1,0)))","v":"Hari 24"},{"$f":"IF(WEEKDAY(CalendarDay)=WeekStartValue,CONCATENATE(\"Minggu \",WEEKNUM(CalendarDay),\"/Hari \",CalendarDay-DATE(YEAR(CalendarDay),1,0)),CONCATENATE(\"Hari \",CalendarDay-DATE(YEAR(CalendarDay),1,0)))","v":"Hari 25"},{"$f":"IF(WEEKDAY(CalendarDay)=WeekStartValue,CONCATENATE(\"Minggu \",WEEKNUM(CalendarDay),\"/Hari \",CalendarDay-DATE(YEAR(CalendarDay),1,0)),CONCATENATE(\"Hari \",CalendarDay-DATE(YEAR(CalendarDay),1,0)))","v":"Hari 26"},{"$f":"IF(WEEKDAY(CalendarDay)=WeekStartValue,CONCATENATE(\"Minggu \",WEEKNUM(CalendarDay),\"/Hari \",CalendarDay-DATE(YEAR(CalendarDay),1,0)),CONCATENATE(\"Hari \",CalendarDay-DATE(YEAR(CalendarDay),1,0)))","v":"Hari 27"}]
[]
[null,null,{"$f":"DaysAndWeeks+DATE(CalendarYear,1,1)-WEEKDAY(DATE(CalendarYear,1,1),(WeekStart=\"SEN\")+1)+29","v":"2018-01-28"},"2018-01-29","2018-01-30","2018-01-31","2018-02-01","2018-02-02","2018-02-03"]
[null,null,{"$f":"IF(WEEKDAY(CalendarDay)=WeekStartValue,CONCATENATE(\"Minggu \",WEEKNUM(CalendarDay),\"/Hari \",CalendarDay-DATE(YEAR(CalendarDay),1,0)),CONCATENATE(\"Hari \",CalendarDay-DATE(YEAR(CalendarDay),1,0)))","v":"Minggu 5/Hari 28"},{"$f":"IF(WEEKDAY(CalendarDay)=WeekStartValue,CONCATENATE(\"Minggu \",WEEKNUM(CalendarDay),\"/Hari \",CalendarDay-DATE(YEAR(CalendarDay),1,0)),CONCATENATE(\"Hari \",CalendarDay-DATE(YEAR(CalendarDay),1,0)))","v":"Hari 29"},{"$f":"IF(WEEKDAY(CalendarDay)=WeekStartValue,CONCATENATE(\"Minggu \",WEEKNUM(CalendarDay),\"/Hari \",CalendarDay-DATE(YEAR(CalendarDay),1,0)),CONCATENATE(\"Hari \",CalendarDay-DATE(YEAR(CalendarDay),1,0)))","v":"Hari 30"},{"$f":"IF(WEEKDAY(CalendarDay)=WeekStartValue,CONCATENATE(\"Minggu \",WEEKNUM(CalendarDay),\"/Hari \",CalendarDay-DATE(YEAR(CalendarDay),1,0)),CONCATENATE(\"Hari \",CalendarDay-DATE(YEAR(CalendarDay),1,0)))","v":"Hari 31"},{"$f":"IF(WEEKDAY(CalendarDay)=WeekStartValue,CONCATENATE(\"Minggu \",WEEKNUM(CalendarDay),\"/Hari \",CalendarDay-DATE(YEAR(CalendarDay),1,0)),CONCATENATE(\"Hari \",CalendarDay-DATE(YEAR(CalendarDay),1,0)))","v":"Hari 32"},{"$f":"IF(WEEKDAY(CalendarDay)=WeekStartValue,CONCATENATE(\"Minggu \",WEEKNUM(CalendarDay),\"/Hari \",CalendarDay-DATE(YEAR(CalendarDay),1,0)),CONCATENATE(\"Hari \",CalendarDay-DATE(YEAR(CalendarDay),1,0)))","v":"Hari 33"},{"$f":"IF(WEEKDAY(CalendarDay)=WeekStartValue,CONCATENATE(\"Minggu \",WEEKNUM(CalendarDay),\"/Hari \",CalendarDay-DATE(YEAR(CalendarDay),1,0)),CONCATENATE(\"Hari \",CalendarDay-DATE(YEAR(CalendarDay),1,0)))","v":"Hari 34"}]
[{"$nulls":4},"CATATAN"]
[]
[null,null,{"$f":"DaysAndWeeks+DATE(CalendarYear,1,1)-WEEKDAY(DATE(CalendarYear,1,1),(WeekStart=\"SEN\")+1)+36","v":"2018-02-04"},"2018-02-05"]
[null,null,{"$f":"IF(WEEKDAY(CalendarDay)=WeekStartValue,CONCATENATE(\"Minggu \",WEEKNUM(CalendarDay),\"/Hari \",CalendarDay-DATE(YEAR(CalendarDay),1,0)),CONCATENATE(\"Hari \",CalendarDay-DATE(YEAR(CalendarDay),1,0)))","v":"Minggu 6/Hari 35"},{"$f":"IF(WEEKDAY(CalendarDay)=WeekStartValue,CONCATENATE(\"Minggu \",WEEKNUM(CalendarDay),\"/Hari \",CalendarDay-DATE(YEAR(CalendarDay),1,0)),CONCATENATE(\"Hari \",CalendarDay-DATE(YEAR(CalendarDay),1,0)))","v":"Hari 36"}]

{"sheet":"FEB","index":1,"n_rows":20,"n_cols":9,"rows_kept":20,"merged":[[16,2,17,2],[17,4,19,8]]}
[null,"FEB",{"$f":"UPPER(TEXT(WeekStart,\"ddd\"))","v":"MGG"},{"$f":"UPPER(TEXT(D3,\"aaa\"))","v":"SEN"},"SEL","RAB","KAM","JUM","SAB"]
[null,{"$f":"CalendarYear","v":2018}]
[null,null,{"$f":"DaysAndWeeks+DATE(CalendarYear,2,1)-WEEKDAY(DATE(CalendarYear,2,1),(WeekStart=\"SEN\")+1)+1","v":"2018-01-28"},"2018-01-29","2018-01-30","2018-01-31","2018-02-01","2018-02-02","2018-02-03"]
[null,null,{"$f":"IF(DAY(CalendarDay)=1,CONCATENATE(\"Minggu \",WEEKNUM(CalendarDay),\"/Hari \",CalendarDay-DATE(YEAR(CalendarDay),1,0)),CONCATENATE(\"Hari \",CalendarDay-DATE(YEAR(CalendarDay),1,0)))","v":"Hari 28"},{"$f":"IF(DAY(CalendarDay)=1,CONCATENATE(\"Minggu \",WEEKNUM(CalendarDay),\"/Hari \",CalendarDay-DATE(YEAR(CalendarDay),1,0)),CONCATENATE(\"Hari \",CalendarDay-DATE(YEAR(CalendarDay),1,0)))","v":"Hari 29"},{"$f":"IF(DAY(CalendarDay)=1,CONCATENATE(\"Minggu \",WEEKNUM(CalendarDay),\"/Hari \",CalendarDay-DATE(YEAR(CalendarDay),1,0)),CONCATENATE(\"Hari \",CalendarDay-DATE(YEAR(CalendarDay),1,0)))","v":"Hari 30"},{"$f":"IF(DAY(CalendarDay)=1,CONCATENATE(\"Minggu \",WEEKNUM(CalendarDay),\"/Hari \",CalendarDay-DATE(YEAR(CalendarDay),1,0)),CONCATENATE(\"Hari \",CalendarDay-DATE(YEAR(CalendarDay),1,0)))","v":"Hari 31"},{"$f":"IF(DAY(CalendarDay)=1,CONCATENATE(\"Minggu \",WEEKNUM(CalendarDay),\"/Hari \",CalendarDay-DATE(YEAR(CalendarDay),1,0)),CONCATENATE(\"Hari \",CalendarDay-DATE(YEAR(CalendarDay),1,0)))","v":"Minggu 5/Hari 32"},{"$f":"IF(DAY(CalendarDay)=1,CONCATENATE(\"Minggu \",WEEKNUM(CalendarDay),\"/Hari \",CalendarDay-DATE(YEAR(CalendarDay),1,0)),CONCATENATE(\"Hari \",CalendarDay-DATE(YEAR(CalendarDay),1,0)))","v":"Hari 33"},{"$f":"IF(DAY(CalendarDay)=1,CONCATENATE(\"Minggu \",WEEKNUM(CalendarDay),\"/Hari \",CalendarDay-DATE(YEAR(CalendarDay),1,0)),CONCATENATE(\"Hari \",CalendarDay-DATE(YEAR(CalendarDay),1,0)))","v":"Hari 34"}]
[]
[null,null,{"$f":"DaysAndWeeks+DATE(CalendarYear,2,1)-WEEKDAY(DATE(CalendarYear,2,1),(WeekStart=\"SEN\")+1)+8","v":"2018-02-04"},"2018-02-05","2018-02-06","2018-02-07","2018-02-08","2018-02-09","2018-02-10"]
[null,null,{"$f":"IF(WEEKDAY(CalendarDay)=WeekStartValue,CONCATENATE(\"Minggu \",WEEKNUM(CalendarDay),\"/Hari \",CalendarDay-DATE(YEAR(CalendarDay),1,0)),CONCATENATE(\"Hari \",CalendarDay-DATE(YEAR(CalendarDay),1,0)))","v":"Minggu 6/Hari 35"},{"$f":"IF(WEEKDAY(CalendarDay)=WeekStartValue,CONCATENATE(\"Minggu \",WEEKNUM(CalendarDay),\"/Hari \",CalendarDay-DATE(YEAR(CalendarDay),1,0)),CONCATENATE(\"Hari \",CalendarDay-DATE(YEAR(CalendarDay),1,0)))","v":"Hari 36"},{"$f":"IF(WEEKDAY(CalendarDay)=WeekStartValue,CONCATENATE(\"Minggu \",WEEKNUM(CalendarDay),\"/Hari \",CalendarDay-DATE(YEAR(CalendarDay),1,0)),CONCATENATE(\"Hari \",CalendarDay-DATE(YEAR(CalendarDay),1,0)))","v":"Hari 37"},{"$f":"IF(WEEKDAY(CalendarDay)=WeekStartValue,CONCATENATE(\"Minggu \",WEEKNUM(CalendarDay),\"/Hari \",CalendarDay-DATE(YEAR(CalendarDay),1,0)),CONCATENATE(\"Hari \",CalendarDay-DATE(YEAR(CalendarDay),1,0)))","v":"Hari 38"},{"$f":"IF(WEEKDAY(CalendarDay)=WeekStartValue,CONCATENATE(\"Minggu \",WEEKNUM(CalendarDay),\"/Hari \",CalendarDay-DATE(YEAR(CalendarDay),1,0)),CONCATENATE(\"Hari \",CalendarDay-DATE(YEAR(CalendarDay),1,0)))","v":"Hari 39"},{"$f":"IF(WEEKDAY(CalendarDay)=WeekStartValue,CONCATENATE(\"Minggu \",WEEKNUM(CalendarDay),\"/Hari \",CalendarDay-DATE(YEAR(CalendarDay),1,0)),CONCATENATE(\"Hari \",CalendarDay-DATE(YEAR(CalendarDay),1,0)))","v":"Hari 40"},{"$f":"IF(WEEKDAY(CalendarDay)=WeekStartValue,CONCATENATE(\"Minggu \",WEEKNUM(CalendarDay),\"/Hari \",CalendarDay-DATE(YEAR(CalendarDay),1,0)),CONCATENATE(\"Hari \",CalendarDay-DATE(YEAR(CalendarDay),1,0)))","v":"Hari 41"}]
[]
[null,null,{"$f":"DaysAndWeeks+DATE(CalendarYear,2,1)-WEEKDAY(DATE(CalendarYear,2,1),(WeekStart=\"SEN\")+1)+15","v":"2018-02-11"},"2018-02-12","2018-02-13","2018-02-14","2018-02-15","2018-02-16","2018-02-17"]
[null,null,{"$f":"IF(WEEKDAY(CalendarDay)=WeekStartValue,CONCATENATE(\"Minggu \",WEEKNUM(CalendarDay),\"/Hari \",CalendarDay-DATE(YEAR(CalendarDay),1,0)),CONCATENATE(\"Hari \",CalendarDay-DATE(YEAR(CalendarDay),1,0)))","v":"Minggu 7/Hari 42"},{"$f":"IF(WEEKDAY(CalendarDay)=WeekStartValue,CONCATENATE(\"Minggu \",WEEKNUM(CalendarDay),\"/Hari \",CalendarDay-DATE(YEAR(CalendarDay),1,0)),CONCATENATE(\"Hari \",CalendarDay-DATE(YEAR(CalendarDay),1,0)))","v":"Hari 43"},{"$f":"IF(WEEKDAY(CalendarDay)=WeekStartValue,CONCATENATE(\"Minggu \",WEEKNUM(CalendarDay),\"/Hari \",CalendarDay-DATE(YEAR(CalendarDay),1,0)),CONCATENATE(\"Hari \",CalendarDay-DATE(YEAR(CalendarDay),1,0)))","v":"Hari 44"},{"$f":"IF(WEEKDAY(CalendarDay)=WeekStartValue,CONCATENATE(\"Minggu \",WEEKNUM(CalendarDay),\"/Hari \",CalendarDay-DATE(YEAR(CalendarDay),1,0)),CONCATENATE(\"Hari \",CalendarDay-DATE(YEAR(CalendarDay),1,0)))","v":"Hari 45"},{"$f":"IF(WEEKDAY(CalendarDay)=WeekStartValue,CONCATENATE(\"Minggu \",WEEKNUM(CalendarDay),\"/Hari \",CalendarDay-DATE(YEAR(CalendarDay),1,0)),CONCATENATE(\"Hari \",CalendarDay-DATE(YEAR(CalendarDay),1,0)))","v":"Hari 46"},{"$f":"IF(WEEKDAY(CalendarDay)=WeekStartValue,CONCATENATE(\"Minggu \",WEEKNUM(CalendarDay),\"/Hari \",CalendarDay-DATE(YEAR(CalendarDay),1,0)),CONCATENATE(\"Hari \",CalendarDay-DATE(YEAR(CalendarDay),1,0)))","v":"Hari 47"},{"$f":"IF(WEEKDAY(CalendarDay)=WeekStartValue,CONCATENATE(\"Minggu \",WEEKNUM(CalendarDay),\"/Hari \",CalendarDay-DATE(YEAR(CalendarDay),1,0)),CONCATENATE(\"Hari \",CalendarDay-DATE(YEAR(CalendarDay),1,0)))","v":"Hari 48"}]
[]
[null,null,{"$f":"DaysAndWeeks+DATE(CalendarYear,2,1)-WEEKDAY(DATE(CalendarYear,2,1),(WeekStart=\"SEN\")+1)+22","v":"2018-02-18"},"2018-02-19","2018-02-20","2018-02-21","2018-02-22","2018-02-23","2018-02-24"]
[null,null,{"$f":"IF(WEEKDAY(CalendarDay)=WeekStartValue,CONCATENATE(\"Minggu \",WEEKNUM(CalendarDay),\"/Hari \",CalendarDay-DATE(YEAR(CalendarDay),1,0)),CONCATENATE(\"Hari \",CalendarDay-DATE(YEAR(CalendarDay),1,0)))","v":"Minggu 8/Hari 49"},{"$f":"IF(WEEKDAY(CalendarDay)=WeekStartValue,CONCATENATE(\"Minggu \",WEEKNUM(CalendarDay),\"/Hari \",CalendarDay-DATE(YEAR(CalendarDay),1,0)),CONCATENATE(\"Hari \",CalendarDay-DATE(YEAR(CalendarDay),1,0)))","v":"Hari 50"},{"$f":"IF(WEEKDAY(CalendarDay)=WeekStartValue,CONCATENATE(\"Minggu \",WEEKNUM(CalendarDay),\"/Hari \",CalendarDay-DATE(YEAR(CalendarDay),1,0)),CONCATENATE(\"Hari \",CalendarDay-DATE(YEAR(CalendarDay),1,0)))","v":"Hari 51"},{"$f":"IF(WEEKDAY(CalendarDay)=WeekStartValue,CONCATENATE(\"Minggu \",WEEKNUM(CalendarDay),\"/Hari \",CalendarDay-DATE(YEAR(CalendarDay),1,0)),CONCATENATE(\"Hari \",CalendarDay-DATE(YEAR(CalendarDay),1,0)))","v":"Hari 52"},{"$f":"IF(WEEKDAY(CalendarDay)=WeekStartValue,CONCATENATE(\"Minggu \",WEEKNUM(CalendarDay),\"/Hari \",CalendarDay-DATE(YEAR(CalendarDay),1,0)),CONCATENATE(\"Hari \",CalendarDay-DATE(YEAR(CalendarDay),1,0)))","v":"Hari 53"},{"$f":"IF(WEEKDAY(CalendarDay)=WeekStartValue,CONCATENATE(\"Minggu \",WEEKNUM(CalendarDay),\"/Hari \",CalendarDay-DATE(YEAR(CalendarDay),1,0)),CONCATENATE(\"Hari \",CalendarDay-DATE(YEAR(CalendarDay),1,0)))","v":"Hari 54"},{"$f":"IF(WEEKDAY(CalendarDay)=WeekStartValue,CONCATENATE(\"Minggu \",WEEKNUM(CalendarDay),\"/Hari \",CalendarDay-DATE(YEAR(CalendarDay),1,0)),CONCATENATE(\"Hari \",CalendarDay-DATE(YEAR(CalendarDay),1,0)))","v":"Hari 55"}]
[]
[null,null,{"$f":"DaysAndWeeks+DATE(CalendarYear,2,1)-WEEKDAY(DATE(CalendarYear,2,1),(WeekStart=\"SEN\")+1)+29","v":"2018-02-25"},"2018-02-26","2018-02-27","2018-02-28","2018-03-01","2018-03-02","2018-03-03"]
[null,null,{"$f":"IF(WEEKDAY(CalendarDay)=WeekStartValue,CONCATENATE(\"Minggu \",WEEKNUM(CalendarDay),\"/Hari \",CalendarDay-DATE(YEAR(CalendarDay),1,0)),CONCATENATE(\"Hari \",CalendarDay-DATE(YEAR(CalendarDay),1,0)))","v":"Minggu 9/Hari 56"},{"$f":"IF(WEEKDAY(CalendarDay)=WeekStartValue,CONCATENATE(\"Minggu \",WEEKNUM(CalendarDay),\"/Hari \",CalendarDay-DATE(YEAR(CalendarDay),1,0)),CONCATENATE(\"Hari \",CalendarDay-DATE(YEAR(CalendarDay),1,0)))","v":"Hari 57"},{"$f":"IF(WEEKDAY(CalendarDay)=WeekStartValue,CONCATENATE(\"Minggu \",WEEKNUM(CalendarDay),\"/Hari \",CalendarDay-DATE(YEAR(CalendarDay),1,0)),CONCATENATE(\"Hari \",CalendarDay-DATE(YEAR(CalendarDay),1,0)))","v":"Hari 58"},{"$f":"IF(WEEKDAY(CalendarDay)=WeekStartValue,CONCATENATE(\"Minggu \",WEEKNUM(CalendarDay),\"/Hari \",CalendarDay-DATE(YEAR(CalendarDay),1,0)),CONCATENATE(\"Hari \",CalendarDay-DATE(YEAR(CalendarDay),1,0)))","v":"Hari 59"},{"$f":"IF(WEEKDAY(CalendarDay)=WeekStartValue,CONCATENATE(\"Minggu \",WEEKNUM(CalendarDay),\"/Hari \",CalendarDay-DATE(YEAR(CalendarDay),1,0)),CONCATENATE(\"Hari \",CalendarDay-DATE(YEAR(CalendarDay),1,0)))","v":"Hari 60"},{"$f":"IF(WEEKDAY(CalendarDay)=WeekStartValue,CONCATENATE(\"Minggu \",WEEKNUM(CalendarDay),\"/Hari \",CalendarDay-DATE(YEAR(CalendarDay),1,0)),CONCATENATE(\"Hari \",CalendarDay-DATE(YEAR(CalendarDay),1,0)))","v":"Hari 61"},{"$f":"IF(WEEKDAY(CalendarDay)=WeekStartValue,CONCATENATE(\"Minggu \",WEEKNUM(CalendarDay),\"/Hari \",CalendarDay-DATE(YEAR(CalendarDay),1,0)),CONCATENATE(\"Hari \",CalendarDay-DATE(YEAR(CalendarDay),1,0)))","v":"Hari 62"}]
[{"$nulls":4},"CATATAN"]
[]
[null,null,{"$f":"DaysAndWeeks+DATE(CalendarYear,2,1)-WEEKDAY(DATE(CalendarYear,2,1),(WeekStart=\"SEN\")+1)+36","v":"2018-03-04"},"2018-03-05"]
[null,null,{"$f":"IF(WEEKDAY(CalendarDay)=WeekStartValue,CONCATENATE(\"Minggu \",WEEKNUM(CalendarDay),\"/Hari \",CalendarDay-DATE(YEAR(CalendarDay),1,0)),CONCATENATE(\"Hari \",CalendarDay-DATE(YEAR(CalendarDay),1,0)))","v":"Minggu 10/Hari 63"},{"$f":"IF(WEEKDAY(CalendarDay)=WeekStartValue,CONCATENATE(\"Minggu \",WEEKNUM(CalendarDay),\"/Hari \",CalendarDay-DATE(YEAR(CalendarDay),1,0)),CONCATENATE(\"Hari \",CalendarDay-DATE(YEAR(CalendarDay),1,0)))","v":"Hari 64"}]

{"sheet":"MAR","index":2,"n_rows":20,"n_cols":9,"rows_kept":20,"merged":[[16,2,17,2],[17,4,19,8]]}
[null,"MAR",{"$f":"UPPER(TEXT(WeekStart,\"ddd\"))","v":"MGG"},{"$f":"UPPER(TEXT(D3,\"aaa\"))","v":"SEN"},"SEL","RAB","KAM","JUM","SAB"]
[null,{"$f":"CalendarYear","v":2018}]
[null,null,{"$f":"DaysAndWeeks+DATE(CalendarYear,3,1)-WEEKDAY(DATE(CalendarYear,3,1),(WeekStart=\"SEN\")+1)+1","v":"2018-02-25"},"2018-02-26","2018-02-27","2018-02-28","2018-03-01","2018-03-02","2018-03-03"]
[null,null,{"$f":"IF(DAY(CalendarDay)=1,CONCATENATE(\"Minggu \",WEEKNUM(CalendarDay),\"/Hari \",CalendarDay-DATE(YEAR(CalendarDay),1,0)),CONCATENATE(\"Hari \",CalendarDay-DATE(YEAR(CalendarDay),1,0)))","v":"Hari 56"},{"$f":"IF(DAY(CalendarDay)=1,CONCATENATE(\"Minggu \",WEEKNUM(CalendarDay),\"/Hari \",CalendarDay-DATE(YEAR(CalendarDay),1,0)),CONCATENATE(\"Hari \",CalendarDay-DATE(YEAR(CalendarDay),1,0)))","v":"Hari 57"},{"$f":"IF(DAY(CalendarDay)=1,CONCATENATE(\"Minggu \",WEEKNUM(CalendarDay),\"/Hari \",CalendarDay-DATE(YEAR(CalendarDay),1,0)),CONCATENATE(\"Hari \",CalendarDay-DATE(YEAR(CalendarDay),1,0)))","v":"Hari 58"},{"$f":"IF(DAY(CalendarDay)=1,CONCATENATE(\"Minggu \",WEEKNUM(CalendarDay),\"/Hari \",CalendarDay-DATE(YEAR(CalendarDay),1,0)),CONCATENATE(\"Hari \",CalendarDay-DATE(YEAR(CalendarDay),1,0)))","v":"Hari 59"},{"$f":"IF(DAY(CalendarDay)=1,CONCATENATE(\"Minggu \",WEEKNUM(CalendarDay),\"/Hari \",CalendarDay-DATE(YEAR(CalendarDay),1,0)),CONCATENATE(\"Hari \",CalendarDay-DATE(YEAR(CalendarDay),1,0)))","v":"Minggu 9/Hari 60"},{"$f":"IF(DAY(CalendarDay)=1,CONCATENATE(\"Minggu \",WEEKNUM(CalendarDay),\"/Hari \",CalendarDay-DATE(YEAR(CalendarDay),1,0)),CONCATENATE(\"Hari \",CalendarDay-DATE(YEAR(CalendarDay),1,0)))","v":"Hari 61"},{"$f":"IF(DAY(CalendarDay)=1,CONCATENATE(\"Minggu \",WEEKNUM(CalendarDay),\"/Hari \",CalendarDay-DATE(YEAR(CalendarDay),1,0)),CONCATENATE(\"Hari \",CalendarDay-DATE(YEAR(CalendarDay),1,0)))","v":"Hari 62"}]
[]
[null,null,{"$f":"DaysAndWeeks+DATE(CalendarYear,3,1)-WEEKDAY(DATE(CalendarYear,3,1),(WeekStart=\"SEN\")+1)+8","v":"2018-03-04"},"2018-03-05","2018-03-06","2018-03-07","2018-03-08","2018-03-09","2018-03-10"]
[null,null,{"$f":"IF(WEEKDAY(CalendarDay)=WeekStartValue,CONCATENATE(\"Minggu \",WEEKNUM(CalendarDay),\"/Hari \",CalendarDay-DATE(YEAR(CalendarDay),1,0)),CONCATENATE(\"Hari \",CalendarDay-DATE(YEAR(CalendarDay),1,0)))","v":"Minggu 10/Hari 63"},{"$f":"IF(WEEKDAY(CalendarDay)=WeekStartValue,CONCATENATE(\"Minggu \",WEEKNUM(CalendarDay),\"/Hari \",CalendarDay-DATE(YEAR(CalendarDay),1,0)),CONCATENATE(\"Hari \",CalendarDay-DATE(YEAR(CalendarDay),1,0)))","v":"Hari 64"},{"$f":"IF(WEEKDAY(CalendarDay)=WeekStartValue,CONCATENATE(\"Minggu \",WEEKNUM(CalendarDay),\"/Hari \",CalendarDay-DATE(YEAR(CalendarDay),1,0)),CONCATENATE(\"Hari \",CalendarDay-DATE(YEAR(CalendarDay),1,0)))","v":"Hari 65"},{"$f":"IF(WEEKDAY(CalendarDay)=WeekStartValue,CONCATENATE(\"Minggu \",WEEKNUM(CalendarDay),\"/Hari \",CalendarDay-DATE(YEAR(CalendarDay),1,0)),CONCATENATE(\"Hari \",CalendarDay-DATE(YEAR(CalendarDay),1,0)))","v":"Hari 66"},{"$f":"IF(WEEKDAY(CalendarDay)=WeekStartValue,CONCATENATE(\"Minggu \",WEEKNUM(CalendarDay),\"/Hari \",CalendarDay-DATE(YEAR(CalendarDay),1,0)),CONCATENATE(\"Hari \",CalendarDay-DATE(YEAR(CalendarDay),1,0)))","v":"Hari 67"},{"$f":"IF(WEEKDAY(CalendarDay)=WeekStartValue,CONCATENATE(\"Minggu \",WEEKNUM(CalendarDay),\"/Hari \",CalendarDay-DATE(YEAR(CalendarDay),1,0)),CONCATENATE(\"Hari \",CalendarDay-DATE(YEAR(CalendarDay),1,0)))","v":"Hari 68"},{"$f":"IF(WEEKDAY(CalendarDay)=WeekStartValue,CONCATENATE(\"Minggu \",WEEKNUM(CalendarDay),\"/Hari \",CalendarDay-DATE(YEAR(CalendarDay),1,0)),CONCATENATE(\"Hari \",CalendarDay-DATE(YEAR(CalendarDay),1,0)))","v":"Hari 69"}]
[]
[null,null,{"$f":"DaysAndWeeks+DATE(CalendarYear,3,1)-WEEKDAY(DATE(CalendarYear,3,1),(WeekStart=\"SEN\")+1)+15","v":"2018-03-11"},"2018-03-12","2018-03-13","2018-03-14","2018-03-15","2018-03-16","2018-03-17"]
[null,null,{"$f":"IF(WEEKDAY(CalendarDay)=WeekStartValue,CONCATENATE(\"Minggu \",WEEKNUM(CalendarDay),\"/Hari \",CalendarDay-DATE(YEAR(CalendarDay),1,0)),CONCATENATE(\"Hari \",CalendarDay-DATE(YEAR(CalendarDay),1,0)))","v":"Minggu 11/Hari 70"},{"$f":"IF(WEEKDAY(CalendarDay)=WeekStartValue,CONCATENATE(\"Minggu \",WEEKNUM(CalendarDay),\"/Hari \",CalendarDay-DATE(YEAR(CalendarDay),1,0)),CONCATENATE(\"Hari \",CalendarDay-DATE(YEAR(CalendarDay),1,0)))","v":"Hari 71"},{"$f":"IF(WEEKDAY(CalendarDay)=WeekStartValue,CONCATENATE(\"Minggu \",WEEKNUM(CalendarDay),\"/Hari \",CalendarDay-DATE(YEAR(CalendarDay),1,0)),CONCATENATE(\"Hari \",CalendarDay-DATE(YEAR(CalendarDay),1,0)))","v":"Hari 72"},{"$f":"IF(WEEKDAY(CalendarDay)=WeekStartValue,CONCATENATE(\"Minggu \",WEEKNUM(CalendarDay),\"/Hari \",CalendarDay-DATE(YEAR(CalendarDay),1,0)),CONCATENATE(\"Hari \",CalendarDay-DATE(YEAR(CalendarDay),1,0)))","v":"Hari 73"},{"$f":"IF(WEEKDAY(CalendarDay)=WeekStartValue,CONCATENATE(\"Minggu \",WEEKNUM(CalendarDay),\"/Hari \",CalendarDay-DATE(YEAR(CalendarDay),1,0)),CONCATENATE(\"Hari \",CalendarDay-DATE(YEAR(CalendarDay),1,0)))","v":"Hari 74"},{"$f":"IF(WEEKDAY(CalendarDay)=WeekStartValue,CONCATENATE(\"Minggu \",WEEKNUM(CalendarDay),\"/Hari \",CalendarDay-DATE(YEAR(CalendarDay),1,0)),CONCATENATE(\"Hari \",CalendarDay-DATE(YEAR(CalendarDay),1,0)))","v":"Hari 75"},{"$f":"IF(WEEKDAY(CalendarDay)=WeekStartValue,CONCATENATE(\"Minggu \",WEEKNUM(CalendarDay),\"/Hari \",CalendarDay-DATE(YEAR(CalendarDay),1,0)),CONCATENATE(\"Hari \",CalendarDay-DATE(YEAR(CalendarDay),1,0)))","v":"Hari 76"}]
[]
[null,null,{"$f":"DaysAndWeeks+DATE(CalendarYear,3,1)-WEEKDAY(DATE(CalendarYear,3,1),(WeekStart=\"SEN\")+1)+22","v":"2018-03-18"},"2018-03-19","2018-03-20","2018-03-21","2018-03-22","2018-03-23","2018-03-24"]
[null,null,{"$f":"IF(WEEKDAY(CalendarDay)=WeekStartValue,CONCATENATE(\"Minggu \",WEEKNUM(CalendarDay),\"/Hari \",CalendarDay-DATE(YEAR(CalendarDay),1,0)),CONCATENATE(\"Hari \",CalendarDay-DATE(YEAR(CalendarDay),1,0)))","v":"Minggu 12/Hari 77"},{"$f":"IF(WEEKDAY(CalendarDay)=WeekStartValue,CONCATENATE(\"Minggu \",WEEKNUM(CalendarDay),\"/Hari \",CalendarDay-DATE(YEAR(CalendarDay),1,0)),CONCATENATE(\"Hari \",CalendarDay-DATE(YEAR(CalendarDay),1,0)))","v":"Hari 78"},{"$f":"IF(WEEKDAY(CalendarDay)=WeekStartValue,CONCATENATE(\"Minggu \",WEEKNUM(CalendarDay),\"/Hari \",CalendarDay-DATE(YEAR(CalendarDay),1,0)),CONCATENATE(\"Hari \",CalendarDay-DATE(YEAR(CalendarDay),1,0)))","v":"Hari 79"},{"$f":"IF(WEEKDAY(CalendarDay)=WeekStartValue,CONCATENATE(\"Minggu \",WEEKNUM(CalendarDay),\"/Hari \",CalendarDay-DATE(YEAR(CalendarDay),1,0)),CONCATENATE(\"Hari \",CalendarDay-DATE(YEAR(CalendarDay),1,0)))","v":"Hari 80"},{"$f":"IF(WEEKDAY(CalendarDay)=WeekStartValue,CONCATENATE(\"Minggu \",WEEKNUM(CalendarDay),\"/Hari \",CalendarDay-DATE(YEAR(CalendarDay),1,0)),CONCATENATE(\"Hari \",CalendarDay-DATE(YEAR(CalendarDay),1,0)))","v":"Hari 81"},{"$f":"IF(WEEKDAY(CalendarDay)=WeekStartValue,CONCATENATE(\"Minggu \",WEEKNUM(CalendarDay),\"/Hari \",CalendarDay-DATE(YEAR(CalendarDay),1,0)),CONCATENATE(\"Hari \",CalendarDay-DATE(YEAR(CalendarDay),1,0)))","v":"Hari 82"},{"$f":"IF(WEEKDAY(CalendarDay)=WeekStartValue,CONCATENATE(\"Minggu \",WEEKNUM(CalendarDay),\"/Hari \",CalendarDay-DATE(YEAR(CalendarDay),1,0)),CONCATENATE(\"Hari \",CalendarDay-DATE(YEAR(CalendarDay),1,0)))","v":"Hari 83"}]
[]
[null,null,{"$f":"DaysAndWeeks+DATE(CalendarYear,3,1)-WEEKDAY(DATE(CalendarYear,3,1),(WeekStart=\"SEN\")+1)+29","v":"2018-03-25"},"2018-03-26","2018-03-27","2018-03-28","2018-03-29","2018-03-30","2018-03-31"]
[null,null,{"$f":"IF(WEEKDAY(CalendarDay)=WeekStartValue,CONCATENATE(\"Minggu \",WEEKNUM(CalendarDay),\"/Hari \",CalendarDay-DATE(YEAR(CalendarDay),1,0)),CONCATENATE(\"Hari \",CalendarDay-DATE(YEAR(CalendarDay),1,0)))","v":"Minggu 13/Hari 84"},{"$f":"IF(WEEKDAY(CalendarDay)=WeekStartValue,CONCATENATE(\"Minggu \",WEEKNUM(CalendarDay),\"/Hari \",CalendarDay-DATE(YEAR(CalendarDay),1,0)),CONCATENATE(\"Hari \",CalendarDay-DATE(YEAR(CalendarDay),1,0)))","v":"Hari 85"},{"$f":"IF(WEEKDAY(CalendarDay)=WeekStartValue,CONCATENATE(\"Minggu \",WEEKNUM(CalendarDay),\"/Hari \",CalendarDay-DATE(YEAR(CalendarDay),1,0)),CONCATENATE(\"Hari \",CalendarDay-DATE(YEAR(CalendarDay),1,0)))","v":"Hari 86"},{"$f":"IF(WEEKDAY(CalendarDay)=WeekStartValue,CONCATENATE(\"Minggu \",WEEKNUM(CalendarDay),\"/Hari \",CalendarDay-DATE(YEAR(CalendarDay),1,0)),CONCATENATE(\"Hari \",CalendarDay-DATE(YEAR(CalendarDay),1,0)))","v":"Hari 87"},{"$f":"IF(WEEKDAY(CalendarDay)=WeekStartValue,CONCATENATE(\"Minggu \",WEEKNUM(CalendarDay),\"/Hari \",CalendarDay-DATE(YEAR(CalendarDay),1,0)),CONCATENATE(\"Hari \",CalendarDay-DATE(YEAR(CalendarDay),1,0)))","v":"Hari 88"},{"$f":"IF(WEEKDAY(CalendarDay)=WeekStartValue,CONCATENATE(\"Minggu \",WEEKNUM(CalendarDay),\"/Hari \",CalendarDay-DATE(YEAR(CalendarDay),1,0)),CONCATENATE(\"Hari \",CalendarDay-DATE(YEAR(CalendarDay),1,0)))","v":"Hari 89"},{"$f":"IF(WEEKDAY(CalendarDay)=WeekStartValue,CONCATENATE(\"Minggu \",WEEKNUM(CalendarDay),\"/Hari \",CalendarDay-DATE(YEAR(CalendarDay),1,0)),CONCATENATE(\"Hari \",CalendarDay-DATE(YEAR(CalendarDay),1,0)))","v":"Hari 90"}]
[{"$nulls":4},"CATATAN"]
[]
[null,null,{"$f":"DaysAndWeeks+DATE(CalendarYear,3,1)-WEEKDAY(DATE(CalendarYear,3,1),(WeekStart=\"SEN\")+1)+36","v":"2018-04-01"},"2018-04-02"]
[null,null,{"$f":"IF(WEEKDAY(CalendarDay)=WeekStartValue,CONCATENATE(\"Minggu \",WEEKNUM(CalendarDay),\"/Hari \",CalendarDay-DATE(YEAR(CalendarDay),1,0)),CONCATENATE(\"Hari \",CalendarDay-DATE(YEAR(CalendarDay),1,0)))","v":"Minggu 14/Hari 91"},{"$f":"IF(WEEKDAY(CalendarDay)=WeekStartValue,CONCATENATE(\"Minggu \",WEEKNUM(CalendarDay),\"/Hari \",CalendarDay-DATE(YEAR(CalendarDay),1,0)),CONCATENATE(\"Hari \",CalendarDay-DATE(YEAR(CalendarDay),1,0)))","v":"Hari 92"}]

{"sheet":"APR","index":3,"n_rows":20,"n_cols":9,"rows_kept":20,"merged":[[16,2,17,2],[17,4,19,8]]}
[null,"APR",{"$f":"UPPER(TEXT(WeekStart,\"ddd\"))","v":"MGG"},{"$f":"UPPER(TEXT(D3,\"aaa\"))","v":"SEN"},"SEL","RAB","KAM","JUM","SAB"]
[null,{"$f":"CalendarYear","v":2018}]
[null,null,{"$f":"DaysAndWeeks+DATE(CalendarYear,4,1)-WEEKDAY(DATE(CalendarYear,4,1),(WeekStart=\"SEN\")+1)+1","v":"2018-04-01"},"2018-04-02","2018-04-03","2018-04-04","2018-04-05","2018-04-06","2018-04-07"]
[null,null,{"$f":"IF(DAY(CalendarDay)=1,CONCATENATE(\"Minggu \",WEEKNUM(CalendarDay),\"/Hari \",CalendarDay-DATE(YEAR(CalendarDay),1,0)),CONCATENATE(\"Hari \",CalendarDay-DATE(YEAR(CalendarDay),1,0)))","v":"Minggu 14/Hari 91"},{"$f":"IF(DAY(CalendarDay)=1,CONCATENATE(\"Minggu \",WEEKNUM(CalendarDay),\"/Hari \",CalendarDay-DATE(YEAR(CalendarDay),1,0)),CONCATENATE(\"Hari \",CalendarDay-DATE(YEAR(CalendarDay),1,0)))","v":"Hari 92"},{"$f":"IF(DAY(CalendarDay)=1,CONCATENATE(\"Minggu \",WEEKNUM(CalendarDay),\"/Hari \",CalendarDay-DATE(YEAR(CalendarDay),1,0)),CONCATENATE(\"Hari \",CalendarDay-DATE(YEAR(CalendarDay),1,0)))","v":"Hari 93"},{"$f":"IF(DAY(CalendarDay)=1,CONCATENATE(\"Minggu \",WEEKNUM(CalendarDay),\"/Hari \",CalendarDay-DATE(YEAR(CalendarDay),1,0)),CONCATENATE(\"Hari \",CalendarDay-DATE(YEAR(CalendarDay),1,0)))","v":"Hari 94"},{"$f":"IF(DAY(CalendarDay)=1,CONCATENATE(\"Minggu \",WEEKNUM(CalendarDay),\"/Hari \",CalendarDay-DATE(YEAR(CalendarDay),1,0)),CONCATENATE(\"Hari \",CalendarDay-DATE(YEAR(CalendarDay),1,0)))","v":"Hari 95"},{"$f":"IF(DAY(CalendarDay)=1,CONCATENATE(\"Minggu \",WEEKNUM(CalendarDay),\"/Hari \",CalendarDay-DATE(YEAR(CalendarDay),1,0)),CONCATENATE(\"Hari \",CalendarDay-DATE(YEAR(CalendarDay),1,0)))","v":"Hari 96"},{"$f":"IF(DAY(CalendarDay)=1,CONCATENATE(\"Minggu \",WEEKNUM(CalendarDay),\"/Hari \",CalendarDay-DATE(YEAR(CalendarDay),1,0)),CONCATENATE(\"Hari \",CalendarDay-DATE(YEAR(CalendarDay),1,0)))","v":"Hari 97"}]
[]
[null,null,{"$f":"DaysAndWeeks+DATE(CalendarYear,4,1)-WEEKDAY(DATE(CalendarYear,4,1),(WeekStart=\"SEN\")+1)+8","v":"2018-04-08"},"2018-04-09","2018-04-10","2018-04-11","2018-04-12","2018-04-13","2018-04-14"]
[null,null,{"$f":"IF(WEEKDAY(CalendarDay)=WeekStartValue,CONCATENATE(\"Minggu \",WEEKNUM(CalendarDay),\"/Hari \",CalendarDay-DATE(YEAR(CalendarDay),1,0)),CONCATENATE(\"Hari \",CalendarDay-DATE(YEAR(CalendarDay),1,0)))","v":"Minggu 15/Hari 98"},{"$f":"IF(WEEKDAY(CalendarDay)=WeekStartValue,CONCATENATE(\"Minggu \",WEEKNUM(CalendarDay),\"/Hari \",CalendarDay-DATE(YEAR(CalendarDay),1,0)),CONCATENATE(\"Hari \",CalendarDay-DATE(YEAR(CalendarDay),1,0)))","v":"Hari 99"},{"$f":"IF(WEEKDAY(CalendarDay)=WeekStartValue,CONCATENATE(\"Minggu \",WEEKNUM(CalendarDay),\"/Hari \",CalendarDay-DATE(YEAR(CalendarDay),1,0)),CONCATENATE(\"Hari \",CalendarDay-DATE(YEAR(CalendarDay),1,0)))","v":"Hari 100"},{"$f":"IF(WEEKDAY(CalendarDay)=WeekStartValue,CONCATENATE(\"Minggu \",WEEKNUM(CalendarDay),\"/Hari \",CalendarDay-DATE(YEAR(CalendarDay),1,0)),CONCATENATE(\"Hari \",CalendarDay-DATE(YEAR(CalendarDay),1,0)))","v":"Hari 101"},{"$f":"IF(WEEKDAY(CalendarDay)=WeekStartValue,CONCATENATE(\"Minggu \",WEEKNUM(CalendarDay),\"/Hari \",CalendarDay-DATE(YEAR(CalendarDay),1,0)),CONCATENATE(\"Hari \",CalendarDay-DATE(YEAR(CalendarDay),1,0)))","v":"Hari 102"},{"$f":"IF(WEEKDAY(CalendarDay)=WeekStartValue,CONCATENATE(\"Minggu \",WEEKNUM(CalendarDay),\"/Hari \",CalendarDay-DATE(YEAR(CalendarDay),1,0)),CONCATENATE(\"Hari \",CalendarDay-DATE(YEAR(CalendarDay),1,0)))","v":"Hari 103"},{"$f":"IF(WEEKDAY(CalendarDay)=WeekStartValue,CONCATENATE(\"Minggu \",WEEKNUM(CalendarDay),\"/Hari \",CalendarDay-DATE(YEAR(CalendarDay),1,0)),CONCATENATE(\"Hari \",CalendarDay-DATE(YEAR(CalendarDay),1,0)))","v":"Hari 104"}]
[]
[null,null,{"$f":"DaysAndWeeks+DATE(CalendarYear,4,1)-WEEKDAY(DATE(CalendarYear,4,1),(WeekStart=\"SEN\")+1)+15","v":"2018-04-15"},"2018-04-16","2018-04-17","2018-04-18","2018-04-19","2018-04-20","2018-04-21"]
[null,null,{"$f":"IF(WEEKDAY(CalendarDay)=WeekStartValue,CONCATENATE(\"Minggu \",WEEKNUM(CalendarDay),\"/Hari \",CalendarDay-DATE(YEAR(CalendarDay),1,0)),CONCATENATE(\"Hari \",CalendarDay-DATE(YEAR(CalendarDay),1,0)))","v":"Minggu 16/Hari 105"},{"$f":"IF(WEEKDAY(CalendarDay)=WeekStartValue,CONCATENATE(\"Minggu \",WEEKNUM(CalendarDay),\"/Hari \",CalendarDay-DATE(YEAR(CalendarDay),1,0)),CONCATENATE(\"Hari \",CalendarDay-DATE(YEAR(CalendarDay),1,0)))","v":"Hari 106"},{"$f":"IF(WEEKDAY(CalendarDay)=WeekStartValue,CONCATENATE(\"Minggu \",WEEKNUM(CalendarDay),\"/Hari \",CalendarDay-DATE(YEAR(CalendarDay),1,0)),CONCATENATE(\"Hari \",CalendarDay-DATE(YEAR(CalendarDay),1,0)))","v":"Hari 107"},{"$f":"IF(WEEKDAY(CalendarDay)=WeekStartValue,CONCATENATE(\"Minggu \",WEEKNUM(CalendarDay),\"/Hari \",CalendarDay-DATE(YEAR(CalendarDay),1,0)),CONCATENATE(\"Hari \",CalendarDay-DATE(YEAR(CalendarDay),1,0)))","v":"Hari 108"},{"$f":"IF(WEEKDAY(CalendarDay)=WeekStartValue,CONCATENATE(\"Minggu \",WEEKNUM(CalendarDay),\"/Hari \",CalendarDay-DATE(YEAR(CalendarDay),1,0)),CONCATENATE(\"Hari \",CalendarDay-DATE(YEAR(CalendarDay),1,0)))","v":"Hari 109"},{"$f":"IF(WEEKDAY(CalendarDay)=WeekStartValue,CONCATENATE(\"Minggu \",WEEKNUM(CalendarDay),\"/Hari \",CalendarDay-DATE(YEAR(CalendarDay),1,0)),CONCATENATE(\"Hari \",CalendarDay-DATE(YEAR(CalendarDay),1,0)))","v":"Hari 110"},{"$f":"IF(WEEKDAY(CalendarDay)=WeekStartValue,CONCATENATE(\"Minggu \",WEEKNUM(CalendarDay),\"/Hari \",CalendarDay-DATE(YEAR(CalendarDay),1,0)),CONCATENATE(\"Hari \",CalendarDay-DATE(YEAR(CalendarDay),1,0)))","v":"Hari 111"}]
[]
[null,null,{"$f":"DaysAndWeeks+DATE(CalendarYear,4,1)-WEEKDAY(DATE(CalendarYear,4,1),(WeekStart=\"SEN\")+1)+22","v":"2018-04-22"},"2018-04-23","2018-04-24","2018-04-25","2018-04-26","2018-04-27","2018-04-28"]
[null,null,{"$f":"IF(WEEKDAY(CalendarDay)=WeekStartValue,CONCATENATE(\"Minggu \",WEEKNUM(CalendarDay),\"/Hari \",CalendarDay-DATE(YEAR(CalendarDay),1,0)),CONCATENATE(\"Hari \",CalendarDay-DATE(YEAR(CalendarDay),1,0)))","v":"Minggu 17/Hari 112"},{"$f":"IF(WEEKDAY(CalendarDay)=WeekStartValue,CONCATENATE(\"Minggu \",WEEKNUM(CalendarDay),\"/Hari \",CalendarDay-DATE(YEAR(CalendarDay),1,0)),CONCATENATE(\"Hari \",CalendarDay-DATE(YEAR(CalendarDay),1,0)))","v":"Hari 113"},{"$f":"IF(WEEKDAY(CalendarDay)=WeekStartValue,CONCATENATE(\"Minggu \",WEEKNUM(CalendarDay),\"/Hari \",CalendarDay-DATE(YEAR(CalendarDay),1,0)),CONCATENATE(\"Hari \",CalendarDay-DATE(YEAR(CalendarDay),1,0)))","v":"Hari 114"},{"$f":"IF(WEEKDAY(CalendarDay)=WeekStartValue,CONCATENATE(\"Minggu \",WEEKNUM(CalendarDay),\"/Hari \",CalendarDay-DATE(YEAR(CalendarDay),1,0)),CONCATENATE(\"Hari \",CalendarDay-DATE(YEAR(CalendarDay),1,0)))","v":"Hari 115"},{"$f":"IF(WEEKDAY(CalendarDay)=WeekStartValue,CONCATENATE(\"Minggu \",WEEKNUM(CalendarDay),\"/Hari \",CalendarDay-DATE(YEAR(CalendarDay),1,0)),CONCATENATE(\"Hari \",CalendarDay-DATE(YEAR(CalendarDay),1,0)))","v":"Hari 116"},{"$f":"IF(WEEKDAY(CalendarDay)=WeekStartValue,CONCATENATE(\"Minggu \",WEEKNUM(CalendarDay),\"/Hari \",CalendarDay-DATE(YEAR(CalendarDay),1,0)),CONCATENATE(\"Hari \",CalendarDay-DATE(YEAR(CalendarDay),1,0)))","v":"Hari 117"},{"$f":"IF(WEEKDAY(CalendarDay)=WeekStartValue,CONCATENATE(\"Minggu \",WEEKNUM(CalendarDay),\"/Hari \",CalendarDay-DATE(YEAR(CalendarDay),1,0)),CONCATENATE(\"Hari \",CalendarDay-DATE(YEAR(CalendarDay),1,0)))","v":"Hari 118"}]
[]
[null,null,{"$f":"DaysAndWeeks+DATE(CalendarYear,4,1)-WEEKDAY(DATE(CalendarYear,4,1),(WeekStart=\"SEN\")+1)+29","v":"2018-04-29"},"2018-04-30","2018-05-01","2018-05-02","2018-05-03","2018-05-04","2018-05-05"]
[null,null,{"$f":"IF(WEEKDAY(CalendarDay)=WeekStartValue,CONCATENATE(\"Minggu \",WEEKNUM(CalendarDay),\"/Hari \",CalendarDay-DATE(YEAR(CalendarDay),1,0)),CONCATENATE(\"Hari \",CalendarDay-DATE(YEAR(CalendarDay),1,0)))","v":"Minggu 18/Hari 119"},{"$f":"IF(WEEKDAY(CalendarDay)=WeekStartValue,CONCATENATE(\"Minggu \",WEEKNUM(CalendarDay),\"/Hari \",CalendarDay-DATE(YEAR(CalendarDay),1,0)),CONCATENATE(\"Hari \",CalendarDay-DATE(YEAR(CalendarDay),1,0)))","v":"Hari 120"},{"$f":"IF(WEEKDAY(CalendarDay)=WeekStartValue,CONCATENATE(\"Minggu \",WEEKNUM(CalendarDay),\"/Hari \",CalendarDay-DATE(YEAR(CalendarDay),1,0)),CONCATENATE(\"Hari \",CalendarDay-DATE(YEAR(CalendarDay),1,0)))","v":"Hari 121"},{"$f":"IF(WEEKDAY(CalendarDay)=WeekStartValue,CONCATENATE(\"Minggu \",WEEKNUM(CalendarDay),\"/Hari \",CalendarDay-DATE(YEAR(CalendarDay),1,0)),CONCATENATE(\"Hari \",CalendarDay-DATE(YEAR(CalendarDay),1,0)))","v":"Hari 122"},{"$f":"IF(WEEKDAY(CalendarDay)=WeekStartValue,CONCATENATE(\"Minggu \",WEEKNUM(CalendarDay),\"/Hari \",CalendarDay-DATE(YEAR(CalendarDay),1,0)),CONCATENATE(\"Hari \",CalendarDay-DATE(YEAR(CalendarDay),1,0)))","v":"Hari 123"},{"$f":"IF(WEEKDAY(CalendarDay)=WeekStartValue,CONCATENATE(\"Minggu \",WEEKNUM(CalendarDay),\"/Hari \",CalendarDay-DATE(YEAR(CalendarDay),1,0)),CONCATENATE(\"Hari \",CalendarDay-DATE(YEAR(CalendarDay),1,0)))","v":"Hari 124"},{"$f":"IF(WEEKDAY(CalendarDay)=WeekStartValue,CONCATENATE(\"Minggu \",WEEKNUM(CalendarDay),\"/Hari \",CalendarDay-DATE(YEAR(CalendarDay),1,0)),CONCATENATE(\"Hari \",CalendarDay-DATE(YEAR(CalendarDay),1,0)))","v":"Hari 125"}]
[{"$nulls":4},"CATATAN"]
[]
[null,null,{"$f":"DaysAndWeeks+DATE(CalendarYear,4,1)-WEEKDAY(DATE(CalendarYear,4,1),(WeekStart=\"SEN\")+1)+36","v":"2018-05-06"},"2018-05-07"]
[null,null,{"$f":"IF(WEEKDAY(CalendarDay)=WeekStartValue,CONCATENATE(\"Minggu \",WEEKNUM(CalendarDay),\"/Hari \",CalendarDay-DATE(YEAR(CalendarDay),1,0)),CONCATENATE(\"Hari \",CalendarDay-DATE(YEAR(CalendarDay),1,0)))","v":"Minggu 19/Hari 126"},{"$f":"IF(WEEKDAY(CalendarDay)=WeekStartValue,CONCATENATE(\"Minggu \",WEEKNUM(CalendarDay),\"/Hari \",CalendarDay-DATE(YEAR(CalendarDay),1,0)),CONCATENATE(\"Hari \",CalendarDay-DATE(YEAR(CalendarDay),1,0)))","v":"Hari 127"}]

{"sheet":"MEI","index":4,"n_rows":20,"n_cols":9,"rows_kept":20,"merged":[[16,2,17,2],[17,4,19,8]]}
[null,"MEI",{"$f":"UPPER(TEXT(WeekStart,\"ddd\"))","v":"MGG"},{"$f":"UPPER(TEXT(D3,\"aaa\"))","v":"SEN"},"SEL","RAB","KAM","JUM","SAB"]
[null,{"$f":"CalendarYear","v":2018}]
[null,null,{"$f":"DaysAndWeeks+DATE(CalendarYear,5,1)-WEEKDAY(DATE(CalendarYear,5,1),(WeekStart=\"SEN\")+1)+1","v":"2018-04-29"},"2018-04-30","2018-05-01","2018-05-02","2018-05-03","2018-05-04","2018-05-05"]
[null,null,{"$f":"IF(DAY(CalendarDay)=1,CONCATENATE(\"Minggu \",WEEKNUM(CalendarDay),\"/Hari \",CalendarDay-DATE(YEAR(CalendarDay),1,0)),CONCATENATE(\"Hari \",CalendarDay-DATE(YEAR(CalendarDay),1,0)))","v":"Hari 119"},{"$f":"IF(DAY(CalendarDay)=1,CONCATENATE(\"Minggu \",WEEKNUM(CalendarDay),\"/Hari \",CalendarDay-DATE(YEAR(CalendarDay),1,0)),CONCATENATE(\"Hari \",CalendarDay-DATE(YEAR(CalendarDay),1,0)))","v":"Hari 120"},{"$f":"IF(DAY(CalendarDay)=1,CONCATENATE(\"Minggu \",WEEKNUM(CalendarDay),\"/Hari \",CalendarDay-DATE(YEAR(CalendarDay),1,0)),CONCATENATE(\"Hari \",CalendarDay-DATE(YEAR(CalendarDay),1,0)))","v":"Minggu 18/Hari 121"},{"$f":"IF(DAY(CalendarDay)=1,CONCATENATE(\"Minggu \",WEEKNUM(CalendarDay),\"/Hari \",CalendarDay-DATE(YEAR(CalendarDay),1,0)),CONCATENATE(\"Hari \",CalendarDay-DATE(YEAR(CalendarDay),1,0)))","v":"Hari 122"},{"$f":"IF(DAY(CalendarDay)=1,CONCATENATE(\"Minggu \",WEEKNUM(CalendarDay),\"/Hari \",CalendarDay-DATE(YEAR(CalendarDay),1,0)),CONCATENATE(\"Hari \",CalendarDay-DATE(YEAR(CalendarDay),1,0)))","v":"Hari 123"},{"$f":"IF(DAY(CalendarDay)=1,CONCATENATE(\"Minggu \",WEEKNUM(CalendarDay),\"/Hari \",CalendarDay-DATE(YEAR(CalendarDay),1,0)),CONCATENATE(\"Hari \",CalendarDay-DATE(YEAR(CalendarDay),1,0)))","v":"Hari 124"},{"$f":"IF(DAY(CalendarDay)=1,CONCATENATE(\"Minggu \",WEEKNUM(CalendarDay),\"/Hari \",CalendarDay-DATE(YEAR(CalendarDay),1,0)),CONCATENATE(\"Hari \",CalendarDay-DATE(YEAR(CalendarDay),1,0)))","v":"Hari 125"}]
[]
[null,null,{"$f":"DaysAndWeeks+DATE(CalendarYear,5,1)-WEEKDAY(DATE(CalendarYear,5,1),(WeekStart=\"SEN\")+1)+8","v":"2018-05-06"},"2018-05-07","2018-05-08","2018-05-09","2018-05-10","2018-05-11","2018-05-12"]
[null,null,{"$f":"IF(WEEKDAY(CalendarDay)=WeekStartValue,CONCATENATE(\"Minggu \",WEEKNUM(CalendarDay),\"/Hari \",CalendarDay-DATE(YEAR(CalendarDay),1,0)),CONCATENATE(\"Hari \",CalendarDay-DATE(YEAR(CalendarDay),1,0)))","v":"Minggu 19/Hari 126"},{"$f":"IF(WEEKDAY(CalendarDay)=WeekStartValue,CONCATENATE(\"Minggu \",WEEKNUM(CalendarDay),\"/Hari \",CalendarDay-DATE(YEAR(CalendarDay),1,0)),CONCATENATE(\"Hari \",CalendarDay-DATE(YEAR(CalendarDay),1,0)))","v":"Hari 127"},{"$f":"IF(WEEKDAY(CalendarDay)=WeekStartValue,CONCATENATE(\"Minggu \",WEEKNUM(CalendarDay),\"/Hari \",CalendarDay-DATE(YEAR(CalendarDay),1,0)),CONCATENATE(\"Hari \",CalendarDay-DATE(YEAR(CalendarDay),1,0)))","v":"Hari 128"},{"$f":"IF(WEEKDAY(CalendarDay)=WeekStartValue,CONCATENATE(\"Minggu \",WEEKNUM(CalendarDay),\"/Hari \",CalendarDay-DATE(YEAR(CalendarDay),1,0)),CONCATENATE(\"Hari \",CalendarDay-DATE(YEAR(CalendarDay),1,0)))","v":"Hari 129"},{"$f":"IF(WEEKDAY(CalendarDay)=WeekStartValue,CONCATENATE(\"Minggu \",WEEKNUM(CalendarDay),\"/Hari \",CalendarDay-DATE(YEAR(CalendarDay),1,0)),CONCATENATE(\"Hari \",CalendarDay-DATE(YEAR(CalendarDay),1,0)))","v":"Hari 130"},{"$f":"IF(WEEKDAY(CalendarDay)=WeekStartValue,CONCATENATE(\"Minggu \",WEEKNUM(CalendarDay),\"/Hari \",CalendarDay-DATE(YEAR(CalendarDay),1,0)),CONCATENATE(\"Hari \",CalendarDay-DATE(YEAR(CalendarDay),1,0)))","v":"Hari 131"},{"$f":"IF(WEEKDAY(CalendarDay)=WeekStartValue,CONCATENATE(\"Minggu \",WEEKNUM(CalendarDay),\"/Hari \",CalendarDay-DATE(YEAR(CalendarDay),1,0)),CONCATENATE(\"Hari \",CalendarDay-DATE(YEAR(CalendarDay),1,0)))","v":"Hari 132"}]
[]
[null,null,{"$f":"DaysAndWeeks+DATE(CalendarYear,5,1)-WEEKDAY(DATE(CalendarYear,5,1),(WeekStart=\"SEN\")+1)+15","v":"2018-05-13"},"2018-05-14","2018-05-15","2018-05-16","2018-05-17","2018-05-18","2018-05-19"]
[null,null,{"$f":"IF(WEEKDAY(CalendarDay)=WeekStartValue,CONCATENATE(\"Minggu \",WEEKNUM(CalendarDay),\"/Hari \",CalendarDay-DATE(YEAR(CalendarDay),1,0)),CONCATENATE(\"Hari \",CalendarDay-DATE(YEAR(CalendarDay),1,0)))","v":"Minggu 20/Hari 133"},{"$f":"IF(WEEKDAY(CalendarDay)=WeekStartValue,CONCATENATE(\"Minggu \",WEEKNUM(CalendarDay),\"/Hari \",CalendarDay-DATE(YEAR(CalendarDay),1,0)),CONCATENATE(\"Hari \",CalendarDay-DATE(YEAR(CalendarDay),1,0)))","v":"Hari 134"},{"$f":"IF(WEEKDAY(CalendarDay)=WeekStartValue,CONCATENATE(\"Minggu \",WEEKNUM(CalendarDay),\"/Hari \",CalendarDay-DATE(YEAR(CalendarDay),1,0)),CONCATENATE(\"Hari \",CalendarDay-DATE(YEAR(CalendarDay),1,0)))","v":"Hari 135"},{"$f":"IF(WEEKDAY(CalendarDay)=WeekStartValue,CONCATENATE(\"Minggu \",WEEKNUM(CalendarDay),\"/Hari \",CalendarDay-DATE(YEAR(CalendarDay),1,0)),CONCATENATE(\"Hari \",CalendarDay-DATE(YEAR(CalendarDay),1,0)))","v":"Hari 136"},{"$f":"IF(WEEKDAY(CalendarDay)=WeekStartValue,CONCATENATE(\"Minggu \",WEEKNUM(CalendarDay),\"/Hari \",CalendarDay-DATE(YEAR(CalendarDay),1,0)),CONCATENATE(\"Hari \",CalendarDay-DATE(YEAR(CalendarDay),1,0)))","v":"Hari 137"},{"$f":"IF(WEEKDAY(CalendarDay)=WeekStartValue,CONCATENATE(\"Minggu \",WEEKNUM(CalendarDay),\"/Hari \",CalendarDay-DATE(YEAR(CalendarDay),1,0)),CONCATENATE(\"Hari \",CalendarDay-DATE(YEAR(CalendarDay),1,0)))","v":"Hari 138"},{"$f":"IF(WEEKDAY(CalendarDay)=WeekStartValue,CONCATENATE(\"Minggu \",WEEKNUM(CalendarDay),\"/Hari \",CalendarDay-DATE(YEAR(CalendarDay),1,0)),CONCATENATE(\"Hari \",CalendarDay-DATE(YEAR(CalendarDay),1,0)))","v":"Hari 139"}]
[]
[null,null,{"$f":"DaysAndWeeks+DATE(CalendarYear,5,1)-WEEKDAY(DATE(CalendarYear,5,1),(WeekStart=\"SEN\")+1)+22","v":"2018-05-20"},"2018-05-21","2018-05-22","2018-05-23","2018-05-24","2018-05-25","2018-05-26"]
[null,null,{"$f":"IF(WEEKDAY(CalendarDay)=WeekStartValue,CONCATENATE(\"Minggu \",WEEKNUM(CalendarDay),\"/Hari \",CalendarDay-DATE(YEAR(CalendarDay),1,0)),CONCATENATE(\"Hari \",CalendarDay-DATE(YEAR(CalendarDay),1,0)))","v":"Minggu 21/Hari 140"},{"$f":"IF(WEEKDAY(CalendarDay)=WeekStartValue,CONCATENATE(\"Minggu \",WEEKNUM(CalendarDay),\"/Hari \",CalendarDay-DATE(YEAR(CalendarDay),1,0)),CONCATENATE(\"Hari \",CalendarDay-DATE(YEAR(CalendarDay),1,0)))","v":"Hari 141"},{"$f":"IF(WEEKDAY(CalendarDay)=WeekStartValue,CONCATENATE(\"Minggu \",WEEKNUM(CalendarDay),\"/Hari \",CalendarDay-DATE(YEAR(CalendarDay),1,0)),CONCATENATE(\"Hari \",CalendarDay-DATE(YEAR(CalendarDay),1,0)))","v":"Hari 142"},{"$f":"IF(WEEKDAY(CalendarDay)=WeekStartValue,CONCATENATE(\"Minggu \",WEEKNUM(CalendarDay),\"/Hari \",CalendarDay-DATE(YEAR(CalendarDay),1,0)),CONCATENATE(\"Hari \",CalendarDay-DATE(YEAR(CalendarDay),1,0)))","v":"Hari 143"},{"$f":"IF(WEEKDAY(CalendarDay)=WeekStartValue,CONCATENATE(\"Minggu \",WEEKNUM(CalendarDay),\"/Hari \",CalendarDay-DATE(YEAR(CalendarDay),1,0)),CONCATENATE(\"Hari \",CalendarDay-DATE(YEAR(CalendarDay),1,0)))","v":"Hari 144"},{"$f":"IF(WEEKDAY(CalendarDay)=WeekStartValue,CONCATENATE(\"Minggu \",WEEKNUM(CalendarDay),\"/Hari \",CalendarDay-DATE(YEAR(CalendarDay),1,0)),CONCATENATE(\"Hari \",CalendarDay-DATE(YEAR(CalendarDay),1,0)))","v":"Hari 145"},{"$f":"IF(WEEKDAY(CalendarDay)=WeekStartValue,CONCATENATE(\"Minggu \",WEEKNUM(CalendarDay),\"/Hari \",CalendarDay-DATE(YEAR(CalendarDay),1,0)),CONCATENATE(\"Hari \",CalendarDay-DATE(YEAR(CalendarDay),1,0)))","v":"Hari 146"}]
[]
[null,null,{"$f":"DaysAndWeeks+DATE(CalendarYear,5,1)-WEEKDAY(DATE(CalendarYear,5,1),(WeekStart=\"SEN\")+1)+29","v":"2018-05-27"},"2018-05-28","2018-05-29","2018-05-30","2018-05-31","2018-06-01","2018-06-02"]
[null,null,{"$f":"IF(WEEKDAY(CalendarDay)=WeekStartValue,CONCATENATE(\"Minggu \",WEEKNUM(CalendarDay),\"/Hari \",CalendarDay-DATE(YEAR(CalendarDay),1,0)),CONCATENATE(\"Hari \",CalendarDay-DATE(YEAR(CalendarDay),1,0)))","v":"Minggu 22/Hari 147"},{"$f":"IF(WEEKDAY(CalendarDay)=WeekStartValue,CONCATENATE(\"Minggu \",WEEKNUM(CalendarDay),\"/Hari \",CalendarDay-DATE(YEAR(CalendarDay),1,0)),CONCATENATE(\"Hari \",CalendarDay-DATE(YEAR(CalendarDay),1,0)))","v":"Hari 148"},{"$f":"IF(WEEKDAY(CalendarDay)=WeekStartValue,CONCATENATE(\"Minggu \",WEEKNUM(CalendarDay),\"/Hari \",CalendarDay-DATE(YEAR(CalendarDay),1,0)),CONCATENATE(\"Hari \",CalendarDay-DATE(YEAR(CalendarDay),1,0)))","v":"Hari 149"},{"$f":"IF(WEEKDAY(CalendarDay)=WeekStartValue,CONCATENATE(\"Minggu \",WEEKNUM(CalendarDay),\"/Hari \",CalendarDay-DATE(YEAR(CalendarDay),1,0)),CONCATENATE(\"Hari \",CalendarDay-DATE(YEAR(CalendarDay),1,0)))","v":"Hari 150"},{"$f":"IF(WEEKDAY(CalendarDay)=WeekStartValue,CONCATENATE(\"Minggu \",WEEKNUM(CalendarDay),\"/Hari \",CalendarDay-DATE(YEAR(CalendarDay),1,0)),CONCATENATE(\"Hari \",CalendarDay-DATE(YEAR(CalendarDay),1,0)))","v":"Hari 151"},{"$f":"IF(WEEKDAY(CalendarDay)=WeekStartValue,CONCATENATE(\"Minggu \",WEEKNUM(CalendarDay),\"/Hari \",CalendarDay-DATE(YEAR(CalendarDay),1,0)),CONCATENATE(\"Hari \",CalendarDay-DATE(YEAR(CalendarDay),1,0)))","v":"Hari 152"},{"$f":"IF(WEEKDAY(CalendarDay)=WeekStartValue,CONCATENATE(\"Minggu \",WEEKNUM(CalendarDay),\"/Hari \",CalendarDay-DATE(YEAR(CalendarDay),1,0)),CONCATENATE(\"Hari \",CalendarDay-DATE(YEAR(CalendarDay),1,0)))","v":"Hari 153"}]
[{"$nulls":4},"CATATAN"]
[]
[null,null,{"$f":"DaysAndWeeks+DATE(CalendarYear,5,1)-WEEKDAY(DATE(CalendarYear,5,1),(WeekStart=\"SEN\")+1)+36","v":"2018-06-03"},"2018-06-04"]
[null,null,{"$f":"IF(WEEKDAY(CalendarDay)=WeekStartValue,CONCATENATE(\"Minggu \",WEEKNUM(CalendarDay),\"/Hari \",CalendarDay-DATE(YEAR(CalendarDay),1,0)),CONCATENATE(\"Hari \",CalendarDay-DATE(YEAR(CalendarDay),1,0)))","v":"Minggu 23/Hari 154"},{"$f":"IF(WEEKDAY(CalendarDay)=WeekStartValue,CONCATENATE(\"Minggu \",WEEKNUM(CalendarDay),\"/Hari \",CalendarDay-DATE(YEAR(CalendarDay),1,0)),CONCATENATE(\"Hari \",CalendarDay-DATE(YEAR(CalendarDay),1,0)))","v":"Hari 155"}]

{"sheet":"JUN","index":5,"n_rows":20,"n_cols":9,"rows_kept":20,"merged":[[16,2,17,2],[17,4,19,8]]}
[null,"JUN",{"$f":"UPPER(TEXT(WeekStart,\"ddd\"))","v":"MGG"},{"$f":"UPPER(TEXT(D3,\"aaa\"))","v":"SEN"},"SEL","RAB","KAM","JUM","SAB"]
[null,{"$f":"CalendarYear","v":2018}]
[null,null,{"$f":"DaysAndWeeks+DATE(CalendarYear,6,1)-WEEKDAY(DATE(CalendarYear,6,1),(WeekStart=\"SEN\")+1)+1","v":"2018-05-27"},"2018-05-28","2018-05-29","2018-05-30","2018-05-31","2018-06-01","2018-06-02"]
[null,null,{"$f":"IF(DAY(CalendarDay)=1,CONCATENATE(\"Minggu \",WEEKNUM(CalendarDay),\"/Hari \",CalendarDay-DATE(YEAR(CalendarDay),1,0)),CONCATENATE(\"Hari \",CalendarDay-DATE(YEAR(CalendarDay),1,0)))","v":"Hari 147"},{"$f":"IF(DAY(CalendarDay)=1,CONCATENATE(\"Minggu \",WEEKNUM(CalendarDay),\"/Hari \",CalendarDay-DATE(YEAR(CalendarDay),1,0)),CONCATENATE(\"Hari \",CalendarDay-DATE(YEAR(CalendarDay),1,0)))","v":"Hari 148"},{"$f":"IF(DAY(CalendarDay)=1,CONCATENATE(\"Minggu \",WEEKNUM(CalendarDay),\"/Hari \",CalendarDay-DATE(YEAR(CalendarDay),1,0)),CONCATENATE(\"Hari \",CalendarDay-DATE(YEAR(CalendarDay),1,0)))","v":"Hari 149"},{"$f":"IF(DAY(CalendarDay)=1,CONCATENATE(\"Minggu \",WEEKNUM(CalendarDay),\"/Hari \",CalendarDay-DATE(YEAR(CalendarDay),1,0)),CONCATENATE(\"Hari \",CalendarDay-DATE(YEAR(CalendarDay),1,0)))","v":"Hari 150"},{"$f":"IF(DAY(CalendarDay)=1,CONCATENATE(\"Minggu \",WEEKNUM(CalendarDay),\"/Hari \",CalendarDay-DATE(YEAR(CalendarDay),1,0)),CONCATENATE(\"Hari \",CalendarDay-DATE(YEAR(CalendarDay),1,0)))","v":"Hari 151"},{"$f":"IF(DAY(CalendarDay)=1,CONCATENATE(\"Minggu \",WEEKNUM(CalendarDay),\"/Hari \",CalendarDay-DATE(YEAR(CalendarDay),1,0)),CONCATENATE(\"Hari \",CalendarDay-DATE(YEAR(CalendarDay),1,0)))","v":"Minggu 22/Hari 152"},{"$f":"IF(DAY(CalendarDay)=1,CONCATENATE(\"Minggu \",WEEKNUM(CalendarDay),\"/Hari \",CalendarDay-DATE(YEAR(CalendarDay),1,0)),CONCATENATE(\"Hari \",CalendarDay-DATE(YEAR(CalendarDay),1,0)))","v":"Hari 153"}]
[]
[null,null,{"$f":"DaysAndWeeks+DATE(CalendarYear,6,1)-WEEKDAY(DATE(CalendarYear,6,1),(WeekStart=\"SEN\")+1)+8","v":"2018-06-03"},"2018-06-04","2018-06-05","2018-06-06","2018-06-07","2018-06-08","2018-06-09"]
[null,null,{"$f":"IF(WEEKDAY(CalendarDay)=WeekStartValue,CONCATENATE(\"Minggu \",WEEKNUM(CalendarDay),\"/Hari \",CalendarDay-DATE(YEAR(CalendarDay),1,0)),CONCATENATE(\"Hari \",CalendarDay-DATE(YEAR(CalendarDay),1,0)))","v":"Minggu 23/Hari 154"},{"$f":"IF(WEEKDAY(CalendarDay)=WeekStartValue,CONCATENATE(\"Minggu \",WEEKNUM(CalendarDay),\"/Hari \",CalendarDay-DATE(YEAR(CalendarDay),1,0)),CONCATENATE(\"Hari \",CalendarDay-DATE(YEAR(CalendarDay),1,0)))","v":"Hari 155"},{"$f":"IF(WEEKDAY(CalendarDay)=WeekStartValue,CONCATENATE(\"Minggu \",WEEKNUM(CalendarDay),\"/Hari \",CalendarDay-DATE(YEAR(CalendarDay),1,0)),CONCATENATE(\"Hari \",CalendarDay-DATE(YEAR(CalendarDay),1,0)))","v":"Hari 156"},{"$f":"IF(WEEKDAY(CalendarDay)=WeekStartValue,CONCATENATE(\"Minggu \",WEEKNUM(CalendarDay),\"/Hari \",CalendarDay-DATE(YEAR(CalendarDay),1,0)),CONCATENATE(\"Hari \",CalendarDay-DATE(YEAR(CalendarDay),1,0)))","v":"Hari 157"},{"$f":"IF(WEEKDAY(CalendarDay)=WeekStartValue,CONCATENATE(\"Minggu \",WEEKNUM(CalendarDay),\"/Hari \",CalendarDay-DATE(YEAR(CalendarDay),1,0)),CONCATENATE(\"Hari \",CalendarDay-DATE(YEAR(CalendarDay),1,0)))","v":"Hari 158"},{"$f":"IF(WEEKDAY(CalendarDay)=WeekStartValue,CONCATENATE(\"Minggu \",WEEKNUM(CalendarDay),\"/Hari \",CalendarDay-DATE(YEAR(CalendarDay),1,0)),CONCATENATE(\"Hari \",CalendarDay-DATE(YEAR(CalendarDay),1,0)))","v":"Hari 159"},{"$f":"IF(WEEKDAY(CalendarDay)=WeekStartValue,CONCATENATE(\"Minggu \",WEEKNUM(CalendarDay),\"/Hari \",CalendarDay-DATE(YEAR(CalendarDay),1,0)),CONCATENATE(\"Hari \",CalendarDay-DATE(YEAR(CalendarDay),1,0)))","v":"Hari 160"}]
[]
[null,null,{"$f":"DaysAndWeeks+DATE(CalendarYear,6,1)-WEEKDAY(DATE(CalendarYear,6,1),(WeekStart=\"SEN\")+1)+15","v":"2018-06-10"},"2018-06-11","2018-06-12","2018-06-13","2018-06-14","2018-06-15","2018-06-16"]
[null,null,{"$f":"IF(WEEKDAY(CalendarDay)=WeekStartValue,CONCATENATE(\"Minggu \",WEEKNUM(CalendarDay),\"/Hari \",CalendarDay-DATE(YEAR(CalendarDay),1,0)),CONCATENATE(\"Hari \",CalendarDay-DATE(YEAR(CalendarDay),1,0)))","v":"Minggu 24/Hari 161"},{"$f":"IF(WEEKDAY(CalendarDay)=WeekStartValue,CONCATENATE(\"Minggu \",WEEKNUM(CalendarDay),\"/Hari \",CalendarDay-DATE(YEAR(CalendarDay),1,0)),CONCATENATE(\"Hari \",CalendarDay-DATE(YEAR(CalendarDay),1,0)))","v":"Hari 162"},{"$f":"IF(WEEKDAY(CalendarDay)=WeekStartValue,CONCATENATE(\"Minggu \",WEEKNUM(CalendarDay),\"/Hari \",CalendarDay-DATE(YEAR(CalendarDay),1,0)),CONCATENATE(\"Hari \",CalendarDay-DATE(YEAR(CalendarDay),1,0)))","v":"Hari 163"},{"$f":"IF(WEEKDAY(CalendarDay)=WeekStartValue,CONCATENATE(\"Minggu \",WEEKNUM(CalendarDay),\"/Hari \",CalendarDay-DATE(YEAR(CalendarDay),1,0)),CONCATENATE(\"Hari \",CalendarDay-DATE(YEAR(CalendarDay),1,0)))","v":"Hari 164"},{"$f":"IF(WEEKDAY(CalendarDay)=WeekStartValue,CONCATENATE(\"Minggu \",WEEKNUM(CalendarDay),\"/Hari \",CalendarDay-DATE(YEAR(CalendarDay),1,0)),CONCATENATE(\"Hari \",CalendarDay-DATE(YEAR(CalendarDay),1,0)))","v":"Hari 165"},{"$f":"IF(WEEKDAY(CalendarDay)=WeekStartValue,CONCATENATE(\"Minggu \",WEEKNUM(CalendarDay),\"/Hari \",CalendarDay-DATE(YEAR(CalendarDay),1,0)),CONCATENATE(\"Hari \",CalendarDay-DATE(YEAR(CalendarDay),1,0)))","v":"Hari 166"},{"$f":"IF(WEEKDAY(CalendarDay)=WeekStartValue,CONCATENATE(\"Minggu \",WEEKNUM(CalendarDay),\"/Hari \",CalendarDay-DATE(YEAR(CalendarDay),1,0)),CONCATENATE(\"Hari \",CalendarDay-DATE(YEAR(CalendarDay),1,0)))","v":"Hari 167"}]
[]
[null,null,{"$f":"DaysAndWeeks+DATE(CalendarYear,6,1)-WEEKDAY(DATE(CalendarYear,6,1),(WeekStart=\"SEN\")+1)+22","v":"2018-06-17"},"2018-06-18","2018-06-19","2018-06-20","2018-06-21","2018-06-22","2018-06-23"]
[null,null,{"$f":"IF(WEEKDAY(CalendarDay)=WeekStartValue,CONCATENATE(\"Minggu \",WEEKNUM(CalendarDay),\"/Hari \",CalendarDay-DATE(YEAR(CalendarDay),1,0)),CONCATENATE(\"Hari \",CalendarDay-DATE(YEAR(CalendarDay),1,0)))","v":"Minggu 25/Hari 168"},{"$f":"IF(WEEKDAY(CalendarDay)=WeekStartValue,CONCATENATE(\"Minggu \",WEEKNUM(CalendarDay),\"/Hari \",CalendarDay-DATE(YEAR(CalendarDay),1,0)),CONCATENATE(\"Hari \",CalendarDay-DATE(YEAR(CalendarDay),1,0)))","v":"Hari 169"},{"$f":"IF(WEEKDAY(CalendarDay)=WeekStartValue,CONCATENATE(\"Minggu \",WEEKNUM(CalendarDay),\"/Hari \",CalendarDay-DATE(YEAR(CalendarDay),1,0)),CONCATENATE(\"Hari \",CalendarDay-DATE(YEAR(CalendarDay),1,0)))","v":"Hari 170"},{"$f":"IF(WEEKDAY(CalendarDay)=WeekStartValue,CONCATENATE(\"Minggu \",WEEKNUM(CalendarDay),\"/Hari \",CalendarDay-DATE(YEAR(CalendarDay),1,0)),CONCATENATE(\"Hari \",CalendarDay-DATE(YEAR(CalendarDay),1,0)))","v":"Hari 171"},{"$f":"IF(WEEKDAY(CalendarDay)=WeekStartValue,CONCATENATE(\"Minggu \",WEEKNUM(CalendarDay),\"/Hari \",CalendarDay-DATE(YEAR(CalendarDay),1,0)),CONCATENATE(\"Hari \",CalendarDay-DATE(YEAR(CalendarDay),1,0)))","v":"Hari 172"},{"$f":"IF(WEEKDAY(CalendarDay)=WeekStartValue,CONCATENATE(\"Minggu \",WEEKNUM(CalendarDay),\"/Hari \",CalendarDay-DATE(YEAR(CalendarDay),1,0)),CONCATENATE(\"Hari \",CalendarDay-DATE(YEAR(CalendarDay),1,0)))","v":"Hari 173"},{"$f":"IF(WEEKDAY(CalendarDay)=WeekStartValue,CONCATENATE(\"Minggu \",WEEKNUM(CalendarDay),\"/Hari \",CalendarDay-DATE(YEAR(CalendarDay),1,0)),CONCATENATE(\"Hari \",CalendarDay-DATE(YEAR(CalendarDay),1,0)))","v":"Hari 174"}]
[]
[null,null,{"$f":"DaysAndWeeks+DATE(CalendarYear,6,1)-WEEKDAY(DATE(CalendarYear,6,1),(WeekStart=\"SEN\")+1)+29","v":"2018-06-24"},"2018-06-25","2018-06-26","2018-06-27","2018-06-28","2018-06-29","2018-06-30"]
[null,null,{"$f":"IF(WEEKDAY(CalendarDay)=WeekStartValue,CONCATENATE(\"Minggu \",WEEKNUM(CalendarDay),\"/Hari \",CalendarDay-DATE(YEAR(CalendarDay),1,0)),CONCATENATE(\"Hari \",CalendarDay-DATE(YEAR(CalendarDay),1,0)))","v":"Minggu 26/Hari 175"},{"$f":"IF(WEEKDAY(CalendarDay)=WeekStartValue,CONCATENATE(\"Minggu \",WEEKNUM(CalendarDay),\"/Hari \",CalendarDay-DATE(YEAR(CalendarDay),1,0)),CONCATENATE(\"Hari \",CalendarDay-DATE(YEAR(CalendarDay),1,0)))","v":"Hari 176"},{"$f":"IF(WEEKDAY(CalendarDay)=WeekStartValue,CONCATENATE(\"Minggu \",WEEKNUM(CalendarDay),\"/Hari \",CalendarDay-DATE(YEAR(CalendarDay),1,0)),CONCATENATE(\"Hari \",CalendarDay-DATE(YEAR(CalendarDay),1,0)))","v":"Hari 177"},{"$f":"IF(WEEKDAY(CalendarDay)=WeekStartValue,CONCATENATE(\"Minggu \",WEEKNUM(CalendarDay),\"/Hari \",CalendarDay-DATE(YEAR(CalendarDay),1,0)),CONCATENATE(\"Hari \",CalendarDay-DATE(YEAR(CalendarDay),1,0)))","v":"Hari 178"},{"$f":"IF(WEEKDAY(CalendarDay)=WeekStartValue,CONCATENATE(\"Minggu \",WEEKNUM(CalendarDay),\"/Hari \",CalendarDay-DATE(YEAR(CalendarDay),1,0)),CONCATENATE(\"Hari \",CalendarDay-DATE(YEAR(CalendarDay),1,0)))","v":"Hari 179"},{"$f":"IF(WEEKDAY(CalendarDay)=WeekStartValue,CONCATENATE(\"Minggu \",WEEKNUM(CalendarDay),\"/Hari \",CalendarDay-DATE(YEAR(CalendarDay),1,0)),CONCATENATE(\"Hari \",CalendarDay-DATE(YEAR(CalendarDay),1,0)))","v":"Hari 180"},{"$f":"IF(WEEKDAY(CalendarDay)=WeekStartValue,CONCATENATE(\"Minggu \",WEEKNUM(CalendarDay),\"/Hari \",CalendarDay-DATE(YEAR(CalendarDay),1,0)),CONCATENATE(\"Hari \",CalendarDay-DATE(YEAR(CalendarDay),1,0)))","v":"Hari 181"}]
[{"$nulls":4},"CATATAN"]
[]
[null,null,{"$f":"DaysAndWeeks+DATE(CalendarYear,6,1)-WEEKDAY(DATE(CalendarYear,6,1),(WeekStart=\"SEN\")+1)+36","v":"2018-07-01"},"2018-07-02"]
[null,null,{"$f":"IF(WEEKDAY(CalendarDay)=WeekStartValue,CONCATENATE(\"Minggu \",WEEKNUM(CalendarDay),\"/Hari \",CalendarDay-DATE(YEAR(CalendarDay),1,0)),CONCATENATE(\"Hari \",CalendarDay-DATE(YEAR(CalendarDay),1,0)))","v":"Minggu 27/Hari 182"},{"$f":"IF(WEEKDAY(CalendarDay)=WeekStartValue,CONCATENATE(\"Minggu \",WEEKNUM(CalendarDay),\"/Hari \",CalendarDay-DATE(YEAR(CalendarDay),1,0)),CONCATENATE(\"Hari \",CalendarDay-DATE(YEAR(CalendarDay),1,0)))","v":"Hari 183"}]

{"sheet":"JUL","index":6,"n_rows":20,"n_cols":9,"rows_kept":20,"merged":[[16,2,17,2],[17,4,19,8]]}
[null,"JUL",{"$f":"UPPER(TEXT(WeekStart,\"ddd\"))","v":"MGG"},{"$f":"UPPER(TEXT(D3,\"aaa\"))","v":"SEN"},"SEL","RAB","KAM","JUM","SAB"]
[null,{"$f":"CalendarYear","v":2018}]
[null,null,{"$f":"DaysAndWeeks+DATE(CalendarYear,7,1)-WEEKDAY(DATE(CalendarYear,7,1),(WeekStart=\"SEN\")+1)+1","v":"2018-07-01"},"2018-07-02","2018-07-03","2018-07-04","2018-07-05","2018-07-06","2018-07-07"]
[null,null,{"$f":"IF(DAY(CalendarDay)=1,CONCATENATE(\"Minggu \",WEEKNUM(CalendarDay),\"/Hari \",CalendarDay-DATE(YEAR(CalendarDay),1,0)),CONCATENATE(\"Hari \",CalendarDay-DATE(YEAR(CalendarDay),1,0)))","v":"Minggu 27/Hari 182"},{"$f":"IF(DAY(CalendarDay)=1,CONCATENATE(\"Minggu \",WEEKNUM(CalendarDay),\"/Hari \",CalendarDay-DATE(YEAR(CalendarDay),1,0)),CONCATENATE(\"Hari \",CalendarDay-DATE(YEAR(CalendarDay),1,0)))","v":"Hari 183"},{"$f":"IF(DAY(CalendarDay)=1,CONCATENATE(\"Minggu \",WEEKNUM(CalendarDay),\"/Hari \",CalendarDay-DATE(YEAR(CalendarDay),1,0)),CONCATENATE(\"Hari \",CalendarDay-DATE(YEAR(CalendarDay),1,0)))","v":"Hari 184"},{"$f":"IF(DAY(CalendarDay)=1,CONCATENATE(\"Minggu \",WEEKNUM(CalendarDay),\"/Hari \",CalendarDay-DATE(YEAR(CalendarDay),1,0)),CONCATENATE(\"Hari \",CalendarDay-DATE(YEAR(CalendarDay),1,0)))","v":"Hari 185"},{"$f":"IF(DAY(CalendarDay)=1,CONCATENATE(\"Minggu \",WEEKNUM(CalendarDay),\"/Hari \",CalendarDay-DATE(YEAR(CalendarDay),1,0)),CONCATENATE(\"Hari \",CalendarDay-DATE(YEAR(CalendarDay),1,0)))","v":"Hari 186"},{"$f":"IF(DAY(CalendarDay)=1,CONCATENATE(\"Minggu \",WEEKNUM(CalendarDay),\"/Hari \",CalendarDay-DATE(YEAR(CalendarDay),1,0)),CONCATENATE(\"Hari \",CalendarDay-DATE(YEAR(CalendarDay),1,0)))","v":"Hari 187"},{"$f":"IF(DAY(CalendarDay)=1,CONCATENATE(\"Minggu \",WEEKNUM(CalendarDay),\"/Hari \",CalendarDay-DATE(YEAR(CalendarDay),1,0)),CONCATENATE(\"Hari \",CalendarDay-DATE(YEAR(CalendarDay),1,0)))","v":"Hari 188"}]
[]
[null,null,{"$f":"DaysAndWeeks+DATE(CalendarYear,7,1)-WEEKDAY(DATE(CalendarYear,7,1),(WeekStart=\"SEN\")+1)+8","v":"2018-07-08"},"2018-07-09","2018-07-10","2018-07-11","2018-07-12","2018-07-13","2018-07-14"]
[null,null,{"$f":"IF(WEEKDAY(CalendarDay)=WeekStartValue,CONCATENATE(\"Minggu \",WEEKNUM(CalendarDay),\"/Hari \",CalendarDay-DATE(YEAR(CalendarDay),1,0)),CONCATENATE(\"Hari \",CalendarDay-DATE(YEAR(CalendarDay),1,0)))","v":"Minggu 28/Hari 189"},{"$f":"IF(WEEKDAY(CalendarDay)=WeekStartValue,CONCATENATE(\"Minggu \",WEEKNUM(CalendarDay),\"/Hari \",CalendarDay-DATE(YEAR(CalendarDay),1,0)),CONCATENATE(\"Hari \",CalendarDay-DATE(YEAR(CalendarDay),1,0)))","v":"Hari 190"},{"$f":"IF(WEEKDAY(CalendarDay)=WeekStartValue,CONCATENATE(\"Minggu \",WEEKNUM(CalendarDay),\"/Hari \",CalendarDay-DATE(YEAR(CalendarDay),1,0)),CONCATENATE(\"Hari \",CalendarDay-DATE(YEAR(CalendarDay),1,0)))","v":"Hari 191"},{"$f":"IF(WEEKDAY(CalendarDay)=WeekStartValue,CONCATENATE(\"Minggu \",WEEKNUM(CalendarDay),\"/Hari \",CalendarDay-DATE(YEAR(CalendarDay),1,0)),CONCATENATE(\"Hari \",CalendarDay-DATE(YEAR(CalendarDay),1,0)))","v":"Hari 192"},{"$f":"IF(WEEKDAY(CalendarDay)=WeekStartValue,CONCATENATE(\"Minggu \",WEEKNUM(CalendarDay),\"/Hari \",CalendarDay-DATE(YEAR(CalendarDay),1,0)),CONCATENATE(\"Hari \",CalendarDay-DATE(YEAR(CalendarDay),1,0)))","v":"Hari 193"},{"$f":"IF(WEEKDAY(CalendarDay)=WeekStartValue,CONCATENATE(\"Minggu \",WEEKNUM(CalendarDay),\"/Hari \",CalendarDay-DATE(YEAR(CalendarDay),1,0)),CONCATENATE(\"Hari \",CalendarDay-DATE(YEAR(CalendarDay),1,0)))","v":"Hari 194"},{"$f":"IF(WEEKDAY(CalendarDay)=WeekStartValue,CONCATENATE(\"Minggu \",WEEKNUM(CalendarDay),\"/Hari \",CalendarDay-DATE(YEAR(CalendarDay),1,0)),CONCATENATE(\"Hari \",CalendarDay-DATE(YEAR(CalendarDay),1,0)))","v":"Hari 195"}]
[]
[null,null,{"$f":"DaysAndWeeks+DATE(CalendarYear,7,1)-WEEKDAY(DATE(CalendarYear,7,1),(WeekStart=\"SEN\")+1)+15","v":"2018-07-15"},"2018-07-16","2018-07-17","2018-07-18","2018-07-19","2018-07-20","2018-07-21"]
[null,null,{"$f":"IF(WEEKDAY(CalendarDay)=WeekStartValue,CONCATENATE(\"Minggu \",WEEKNUM(CalendarDay),\"/Hari \",CalendarDay-DATE(YEAR(CalendarDay),1,0)),CONCATENATE(\"Hari \",CalendarDay-DATE(YEAR(CalendarDay),1,0)))","v":"Minggu 29/Hari 196"},{"$f":"IF(WEEKDAY(CalendarDay)=WeekStartValue,CONCATENATE(\"Minggu \",WEEKNUM(CalendarDay),\"/Hari \",CalendarDay-DATE(YEAR(CalendarDay),1,0)),CONCATENATE(\"Hari \",CalendarDay-DATE(YEAR(CalendarDay),1,0)))","v":"Hari 197"},{"$f":"IF(WEEKDAY(CalendarDay)=WeekStartValue,CONCATENATE(\"Minggu \",WEEKNUM(CalendarDay),\"/Hari \",CalendarDay-DATE(YEAR(CalendarDay),1,0)),CONCATENATE(\"Hari \",CalendarDay-DATE(YEAR(CalendarDay),1,0)))","v":"Hari 198"},{"$f":"IF(WEEKDAY(CalendarDay)=WeekStartValue,CONCATENATE(\"Minggu \",WEEKNUM(CalendarDay),\"/Hari \",CalendarDay-DATE(YEAR(CalendarDay),1,0)),CONCATENATE(\"Hari \",CalendarDay-DATE(YEAR(CalendarDay),1,0)))","v":"Hari 199"},{"$f":"IF(WEEKDAY(CalendarDay)=WeekStartValue,CONCATENATE(\"Minggu \",WEEKNUM(CalendarDay),\"/Hari \",CalendarDay-DATE(YEAR(CalendarDay),1,0)),CONCATENATE(\"Hari \",CalendarDay-DATE(YEAR(CalendarDay),1,0)))","v":"Hari 200"},{"$f":"IF(WEEKDAY(CalendarDay)=WeekStartValue,CONCATENATE(\"Minggu \",WEEKNUM(CalendarDay),\"/Hari \",CalendarDay-DATE(YEAR(CalendarDay),1,0)),CONCATENATE(\"Hari \",CalendarDay-DATE(YEAR(CalendarDay),1,0)))","v":"Hari 201"},{"$f":"IF(WEEKDAY(CalendarDay)=WeekStartValue,CONCATENATE(\"Minggu \",WEEKNUM(CalendarDay),\"/Hari \",CalendarDay-DATE(YEAR(CalendarDay),1,0)),CONCATENATE(\"Hari \",CalendarDay-DATE(YEAR(CalendarDay),1,0)))","v":"Hari 202"}]
[]
[null,null,{"$f":"DaysAndWeeks+DATE(CalendarYear,7,1)-WEEKDAY(DATE(CalendarYear,7,1),(WeekStart=\"SEN\")+1)+22","v":"2018-07-22"},"2018-07-23","2018-07-24","2018-07-25","2018-07-26","2018-07-27","2018-07-28"]
[null,null,{"$f":"IF(WEEKDAY(CalendarDay)=WeekStartValue,CONCATENATE(\"Minggu \",WEEKNUM(CalendarDay),\"/Hari \",CalendarDay-DATE(YEAR(CalendarDay),1,0)),CONCATENATE(\"Hari \",CalendarDay-DATE(YEAR(CalendarDay),1,0)))","v":"Minggu 30/Hari 203"},{"$f":"IF(WEEKDAY(CalendarDay)=WeekStartValue,CONCATENATE(\"Minggu \",WEEKNUM(CalendarDay),\"/Hari \",CalendarDay-DATE(YEAR(CalendarDay),1,0)),CONCATENATE(\"Hari \",CalendarDay-DATE(YEAR(CalendarDay),1,0)))","v":"Hari 204"},{"$f":"IF(WEEKDAY(CalendarDay)=WeekStartValue,CONCATENATE(\"Minggu \",WEEKNUM(CalendarDay),\"/Hari \",CalendarDay-DATE(YEAR(CalendarDay),1,0)),CONCATENATE(\"Hari \",CalendarDay-DATE(YEAR(CalendarDay),1,0)))","v":"Hari 205"},{"$f":"IF(WEEKDAY(CalendarDay)=WeekStartValue,CONCATENATE(\"Minggu \",WEEKNUM(CalendarDay),\"/Hari \",CalendarDay-DATE(YEAR(CalendarDay),1,0)),CONCATENATE(\"Hari \",CalendarDay-DATE(YEAR(CalendarDay),1,0)))","v":"Hari 206"},{"$f":"IF(WEEKDAY(CalendarDay)=WeekStartValue,CONCATENATE(\"Minggu \",WEEKNUM(CalendarDay),\"/Hari \",CalendarDay-DATE(YEAR(CalendarDay),1,0)),CONCATENATE(\"Hari \",CalendarDay-DATE(YEAR(CalendarDay),1,0)))","v":"Hari 207"},{"$f":"IF(WEEKDAY(CalendarDay)=WeekStartValue,CONCATENATE(\"Minggu \",WEEKNUM(CalendarDay),\"/Hari \",CalendarDay-DATE(YEAR(CalendarDay),1,0)),CONCATENATE(\"Hari \",CalendarDay-DATE(YEAR(CalendarDay),1,0)))","v":"Hari 208"},{"$f":"IF(WEEKDAY(CalendarDay)=WeekStartValue,CONCATENATE(\"Minggu \",WEEKNUM(CalendarDay),\"/Hari \",CalendarDay-DATE(YEAR(CalendarDay),1,0)),CONCATENATE(\"Hari \",CalendarDay-DATE(YEAR(CalendarDay),1,0)))","v":"Hari 209"}]
[]
[null,null,{"$f":"DaysAndWeeks+DATE(CalendarYear,7,1)-WEEKDAY(DATE(CalendarYear,7,1),(WeekStart=\"SEN\")+1)+29","v":"2018-07-29"},"2018-07-30","2018-07-31","2018-08-01","2018-08-02","2018-08-03","2018-08-04"]
[null,null,{"$f":"IF(WEEKDAY(CalendarDay)=WeekStartValue,CONCATENATE(\"Minggu \",WEEKNUM(CalendarDay),\"/Hari \",CalendarDay-DATE(YEAR(CalendarDay),1,0)),CONCATENATE(\"Hari \",CalendarDay-DATE(YEAR(CalendarDay),1,0)))","v":"Minggu 31/Hari 210"},{"$f":"IF(WEEKDAY(CalendarDay)=WeekStartValue,CONCATENATE(\"Minggu \",WEEKNUM(CalendarDay),\"/Hari \",CalendarDay-DATE(YEAR(CalendarDay),1,0)),CONCATENATE(\"Hari \",CalendarDay-DATE(YEAR(CalendarDay),1,0)))","v":"Hari 211"},{"$f":"IF(WEEKDAY(CalendarDay)=WeekStartValue,CONCATENATE(\"Minggu \",WEEKNUM(CalendarDay),\"/Hari \",CalendarDay-DATE(YEAR(CalendarDay),1,0)),CONCATENATE(\"Hari \",CalendarDay-DATE(YEAR(CalendarDay),1,0)))","v":"Hari 212"},{"$f":"IF(WEEKDAY(CalendarDay)=WeekStartValue,CONCATENATE(\"Minggu \",WEEKNUM(CalendarDay),\"/Hari \",CalendarDay-DATE(YEAR(CalendarDay),1,0)),CONCATENATE(\"Hari \",CalendarDay-DATE(YEAR(CalendarDay),1,0)))","v":"Hari 213"},{"$f":"IF(WEEKDAY(CalendarDay)=WeekStartValue,CONCATENATE(\"Minggu \",WEEKNUM(CalendarDay),\"/Hari \",CalendarDay-DATE(YEAR(CalendarDay),1,0)),CONCATENATE(\"Hari \",CalendarDay-DATE(YEAR(CalendarDay),1,0)))","v":"Hari 214"},{"$f":"IF(WEEKDAY(CalendarDay)=WeekStartValue,CONCATENATE(\"Minggu \",WEEKNUM(CalendarDay),\"/Hari \",CalendarDay-DATE(YEAR(CalendarDay),1,0)),CONCATENATE(\"Hari \",CalendarDay-DATE(YEAR(CalendarDay),1,0)))","v":"Hari 215"},{"$f":"IF(WEEKDAY(CalendarDay)=WeekStartValue,CONCATENATE(\"Minggu \",WEEKNUM(CalendarDay),\"/Hari \",CalendarDay-DATE(YEAR(CalendarDay),1,0)),CONCATENATE(\"Hari \",CalendarDay-DATE(YEAR(CalendarDay),1,0)))","v":"Hari 216"}]
[{"$nulls":4},"CATATAN"]
[]
[null,null,{"$f":"DaysAndWeeks+DATE(CalendarYear,7,1)-WEEKDAY(DATE(CalendarYear,7,1),(WeekStart=\"SEN\")+1)+36","v":"2018-08-05"},"2018-08-06"]
[null,null,{"$f":"IF(WEEKDAY(CalendarDay)=WeekStartValue,CONCATENATE(\"Minggu \",WEEKNUM(CalendarDay),\"/Hari \",CalendarDay-DATE(YEAR(CalendarDay),1,0)),CONCATENATE(\"Hari \",CalendarDay-DATE(YEAR(CalendarDay),1,0)))","v":"Minggu 32/Hari 217"},{"$f":"IF(WEEKDAY(CalendarDay)=WeekStartValue,CONCATENATE(\"Minggu \",WEEKNUM(CalendarDay),\"/Hari \",CalendarDay-DATE(YEAR(CalendarDay),1,0)),CONCATENATE(\"Hari \",CalendarDay-DATE(YEAR(CalendarDay),1,0)))","v":"Hari 218"}]

{"sheet":"AGU","index":7,"n_rows":20,"n_cols":9,"rows_kept":20,"merged":[[16,2,17,2],[17,4,19,8]]}
[null,"AGU",{"$f":"UPPER(TEXT(WeekStart,\"ddd\"))","v":"MGG"},{"$f":"UPPER(TEXT(D3,\"aaa\"))","v":"SEN"},"SEL","RAB","KAM","JUM","SAB"]
[null,{"$f":"CalendarYear","v":2018}]
[null,null,{"$f":"DaysAndWeeks+DATE(CalendarYear,8,1)-WEEKDAY(DATE(CalendarYear,8,1),(WeekStart=\"SEN\")+1)+1","v":"2018-07-29"},"2018-07-30","2018-07-31","2018-08-01","2018-08-02","2018-08-03","2018-08-04"]
[null,null,{"$f":"IF(DAY(CalendarDay)=1,CONCATENATE(\"Minggu \",WEEKNUM(CalendarDay),\"/Hari \",CalendarDay-DATE(YEAR(CalendarDay),1,0)),CONCATENATE(\"Hari \",CalendarDay-DATE(YEAR(CalendarDay),1,0)))","v":"Hari 210"},{"$f":"IF(DAY(CalendarDay)=1,CONCATENATE(\"Minggu \",WEEKNUM(CalendarDay),\"/Hari \",CalendarDay-DATE(YEAR(CalendarDay),1,0)),CONCATENATE(\"Hari \",CalendarDay-DATE(YEAR(CalendarDay),1,0)))","v":"Hari 211"},{"$f":"IF(DAY(CalendarDay)=1,CONCATENATE(\"Minggu \",WEEKNUM(CalendarDay),\"/Hari \",CalendarDay-DATE(YEAR(CalendarDay),1,0)),CONCATENATE(\"Hari \",CalendarDay-DATE(YEAR(CalendarDay),1,0)))","v":"Hari 212"},{"$f":"IF(DAY(CalendarDay)=1,CONCATENATE(\"Minggu \",WEEKNUM(CalendarDay),\"/Hari \",CalendarDay-DATE(YEAR(CalendarDay),1,0)),CONCATENATE(\"Hari \",CalendarDay-DATE(YEAR(CalendarDay),1,0)))","v":"Minggu 31/Hari 213"},{"$f":"IF(DAY(CalendarDay)=1,CONCATENATE(\"Minggu \",WEEKNUM(CalendarDay),\"/Hari \",CalendarDay-DATE(YEAR(CalendarDay),1,0)),CONCATENATE(\"Hari \",CalendarDay-DATE(YEAR(CalendarDay),1,0)))","v":"Hari 214"},{"$f":"IF(DAY(CalendarDay)=1,CONCATENATE(\"Minggu \",WEEKNUM(CalendarDay),\"/Hari \",CalendarDay-DATE(YEAR(CalendarDay),1,0)),CONCATENATE(\"Hari \",CalendarDay-DATE(YEAR(CalendarDay),1,0)))","v":"Hari 215"},{"$f":"IF(DAY(CalendarDay)=1,CONCATENATE(\"Minggu \",WEEKNUM(CalendarDay),\"/Hari \",CalendarDay-DATE(YEAR(CalendarDay),1,0)),CONCATENATE(\"Hari \",CalendarDay-DATE(YEAR(CalendarDay),1,0)))","v":"Hari 216"}]
[]
[null,null,{"$f":"DaysAndWeeks+DATE(CalendarYear,8,1)-WEEKDAY(DATE(CalendarYear,8,1),(WeekStart=\"SEN\")+1)+8","v":"2018-08-05"},"2018-08-06","2018-08-07","2018-08-08","2018-08-09","2018-08-10","2018-08-11"]
[null,null,{"$f":"IF(WEEKDAY(CalendarDay)=WeekStartValue,CONCATENATE(\"Minggu \",WEEKNUM(CalendarDay),\"/Hari \",CalendarDay-DATE(YEAR(CalendarDay),1,0)),CONCATENATE(\"Hari \",CalendarDay-DATE(YEAR(CalendarDay),1,0)))","v":"Minggu 32/Hari 217"},{"$f":"IF(WEEKDAY(CalendarDay)=WeekStartValue,CONCATENATE(\"Minggu \",WEEKNUM(CalendarDay),\"/Hari \",CalendarDay-DATE(YEAR(CalendarDay),1,0)),CONCATENATE(\"Hari \",CalendarDay-DATE(YEAR(CalendarDay),1,0)))","v":"Hari 218"},{"$f":"IF(WEEKDAY(CalendarDay)=WeekStartValue,CONCATENATE(\"Minggu \",WEEKNUM(CalendarDay),\"/Hari \",CalendarDay-DATE(YEAR(CalendarDay),1,0)),CONCATENATE(\"Hari \",CalendarDay-DATE(YEAR(CalendarDay),1,0)))","v":"Hari 219"},{"$f":"IF(WEEKDAY(CalendarDay)=WeekStartValue,CONCATENATE(\"Minggu \",WEEKNUM(CalendarDay),\"/Hari \",CalendarDay-DATE(YEAR(CalendarDay),1,0)),CONCATENATE(\"Hari \",CalendarDay-DATE(YEAR(CalendarDay),1,0)))","v":"Hari 220"},{"$f":"IF(WEEKDAY(CalendarDay)=WeekStartValue,CONCATENATE(\"Minggu \",WEEKNUM(CalendarDay),\"/Hari \",CalendarDay-DATE(YEAR(CalendarDay),1,0)),CONCATENATE(\"Hari \",CalendarDay-DATE(YEAR(CalendarDay),1,0)))","v":"Hari 221"},{"$f":"IF(WEEKDAY(CalendarDay)=WeekStartValue,CONCATENATE(\"Minggu \",WEEKNUM(CalendarDay),\"/Hari \",CalendarDay-DATE(YEAR(CalendarDay),1,0)),CONCATENATE(\"Hari \",CalendarDay-DATE(YEAR(CalendarDay),1,0)))","v":"Hari 222"},{"$f":"IF(WEEKDAY(CalendarDay)=WeekStartValue,CONCATENATE(\"Minggu \",WEEKNUM(CalendarDay),\"/Hari \",CalendarDay-DATE(YEAR(CalendarDay),1,0)),CONCATENATE(\"Hari \",CalendarDay-DATE(YEAR(CalendarDay),1,0)))","v":"Hari 223"}]
[]
[null,null,{"$f":"DaysAndWeeks+DATE(CalendarYear,8,1)-WEEKDAY(DATE(CalendarYear,8,1),(WeekStart=\"SEN\")+1)+15","v":"2018-08-12"},"2018-08-13","2018-08-14","2018-08-15","2018-08-16","2018-08-17","2018-08-18"]
[null,null,{"$f":"IF(WEEKDAY(CalendarDay)=WeekStartValue,CONCATENATE(\"Minggu \",WEEKNUM(CalendarDay),\"/Hari \",CalendarDay-DATE(YEAR(CalendarDay),1,0)),CONCATENATE(\"Hari \",CalendarDay-DATE(YEAR(CalendarDay),1,0)))","v":"Minggu 33/Hari 224"},{"$f":"IF(WEEKDAY(CalendarDay)=WeekStartValue,CONCATENATE(\"Minggu \",WEEKNUM(CalendarDay),\"/Hari \",CalendarDay-DATE(YEAR(CalendarDay),1,0)),CONCATENATE(\"Hari \",CalendarDay-DATE(YEAR(CalendarDay),1,0)))","v":"Hari 225"},{"$f":"IF(WEEKDAY(CalendarDay)=WeekStartValue,CONCATENATE(\"Minggu \",WEEKNUM(CalendarDay),\"/Hari \",CalendarDay-DATE(YEAR(CalendarDay),1,0)),CONCATENATE(\"Hari \",CalendarDay-DATE(YEAR(CalendarDay),1,0)))","v":"Hari 226"},{"$f":"IF(WEEKDAY(CalendarDay)=WeekStartValue,CONCATENATE(\"Minggu \",WEEKNUM(CalendarDay),\"/Hari \",CalendarDay-DATE(YEAR(CalendarDay),1,0)),CONCATENATE(\"Hari \",CalendarDay-DATE(YEAR(CalendarDay),1,0)))","v":"Hari 227"},{"$f":"IF(WEEKDAY(CalendarDay)=WeekStartValue,CONCATENATE(\"Minggu \",WEEKNUM(CalendarDay),\"/Hari \",CalendarDay-DATE(YEAR(CalendarDay),1,0)),CONCATENATE(\"Hari \",CalendarDay-DATE(YEAR(CalendarDay),1,0)))","v":"Hari 228"},{"$f":"IF(WEEKDAY(CalendarDay)=WeekStartValue,CONCATENATE(\"Minggu \",WEEKNUM(CalendarDay),\"/Hari \",CalendarDay-DATE(YEAR(CalendarDay),1,0)),CONCATENATE(\"Hari \",CalendarDay-DATE(YEAR(CalendarDay),1,0)))","v":"Hari 229"},{"$f":"IF(WEEKDAY(CalendarDay)=WeekStartValue,CONCATENATE(\"Minggu \",WEEKNUM(CalendarDay),\"/Hari \",CalendarDay-DATE(YEAR(CalendarDay),1,0)),CONCATENATE(\"Hari \",CalendarDay-DATE(YEAR(CalendarDay),1,0)))","v":"Hari 230"}]
[]
[null,null,{"$f":"DaysAndWeeks+DATE(CalendarYear,8,1)-WEEKDAY(DATE(CalendarYear,8,1),(WeekStart=\"SEN\")+1)+22","v":"2018-08-19"},"2018-08-20","2018-08-21","2018-08-22","2018-08-23","2018-08-24","2018-08-25"]
[null,null,{"$f":"IF(WEEKDAY(CalendarDay)=WeekStartValue,CONCATENATE(\"Minggu \",WEEKNUM(CalendarDay),\"/Hari \",CalendarDay-DATE(YEAR(CalendarDay),1,0)),CONCATENATE(\"Hari \",CalendarDay-DATE(YEAR(CalendarDay),1,0)))","v":"Minggu 34/Hari 231"},{"$f":"IF(WEEKDAY(CalendarDay)=WeekStartValue,CONCATENATE(\"Minggu \",WEEKNUM(CalendarDay),\"/Hari \",CalendarDay-DATE(YEAR(CalendarDay),1,0)),CONCATENATE(\"Hari \",CalendarDay-DATE(YEAR(CalendarDay),1,0)))","v":"Hari 232"},{"$f":"IF(WEEKDAY(CalendarDay)=WeekStartValue,CONCATENATE(\"Minggu \",WEEKNUM(CalendarDay),\"/Hari \",CalendarDay-DATE(YEAR(CalendarDay),1,0)),CONCATENATE(\"Hari \",CalendarDay-DATE(YEAR(CalendarDay),1,0)))","v":"Hari 233"},{"$f":"IF(WEEKDAY(CalendarDay)=WeekStartValue,CONCATENATE(\"Minggu \",WEEKNUM(CalendarDay),\"/Hari \",CalendarDay-DATE(YEAR(CalendarDay),1,0)),CONCATENATE(\"Hari \",CalendarDay-DATE(YEAR(CalendarDay),1,0)))","v":"Hari 234"},{"$f":"IF(WEEKDAY(CalendarDay)=WeekStartValue,CONCATENATE(\"Minggu \",WEEKNUM(CalendarDay),\"/Hari \",CalendarDay-DATE(YEAR(CalendarDay),1,0)),CONCATENATE(\"Hari \",CalendarDay-DATE(YEAR(CalendarDay),1,0)))","v":"Hari 235"},{"$f":"IF(WEEKDAY(CalendarDay)=WeekStartValue,CONCATENATE(\"Minggu \",WEEKNUM(CalendarDay),\"/Hari \",CalendarDay-DATE(YEAR(CalendarDay),1,0)),CONCATENATE(\"Hari \",CalendarDay-DATE(YEAR(CalendarDay),1,0)))","v":"Hari 236"},{"$f":"IF(WEEKDAY(CalendarDay)=WeekStartValue,CONCATENATE(\"Minggu \",WEEKNUM(CalendarDay),\"/Hari \",CalendarDay-DATE(YEAR(CalendarDay),1,0)),CONCATENATE(\"Hari \",CalendarDay-DATE(YEAR(CalendarDay),1,0)))","v":"Hari 237"}]
[]
[null,null,{"$f":"DaysAndWeeks+DATE(CalendarYear,8,1)-WEEKDAY(DATE(CalendarYear,8,1),(WeekStart=\"SEN\")+1)+29","v":"2018-08-26"},"2018-08-27","2018-08-28","2018-08-29","2018-08-30","2018-08-31","2018-09-01"]
[null,null,{"$f":"IF(WEEKDAY(CalendarDay)=WeekStartValue,CONCATENATE(\"Minggu \",WEEKNUM(CalendarDay),\"/Hari \",CalendarDay-DATE(YEAR(CalendarDay),1,0)),CONCATENATE(\"Hari \",CalendarDay-DATE(YEAR(CalendarDay),1,0)))","v":"Minggu 35/Hari 238"},{"$f":"IF(WEEKDAY(CalendarDay)=WeekStartValue,CONCATENATE(\"Minggu \",WEEKNUM(CalendarDay),\"/Hari \",CalendarDay-DATE(YEAR(CalendarDay),1,0)),CONCATENATE(\"Hari \",CalendarDay-DATE(YEAR(CalendarDay),1,0)))","v":"Hari 239"},{"$f":"IF(WEEKDAY(CalendarDay)=WeekStartValue,CONCATENATE(\"Minggu \",WEEKNUM(CalendarDay),\"/Hari \",CalendarDay-DATE(YEAR(CalendarDay),1,0)),CONCATENATE(\"Hari \",CalendarDay-DATE(YEAR(CalendarDay),1,0)))","v":"Hari 240"},{"$f":"IF(WEEKDAY(CalendarDay)=WeekStartValue,CONCATENATE(\"Minggu \",WEEKNUM(CalendarDay),\"/Hari \",CalendarDay-DATE(YEAR(CalendarDay),1,0)),CONCATENATE(\"Hari \",CalendarDay-DATE(YEAR(CalendarDay),1,0)))","v":"Hari 241"},{"$f":"IF(WEEKDAY(CalendarDay)=WeekStartValue,CONCATENATE(\"Minggu \",WEEKNUM(CalendarDay),\"/Hari \",CalendarDay-DATE(YEAR(CalendarDay),1,0)),CONCATENATE(\"Hari \",CalendarDay-DATE(YEAR(CalendarDay),1,0)))","v":"Hari 242"},{"$f":"IF(WEEKDAY(CalendarDay)=WeekStartValue,CONCATENATE(\"Minggu \",WEEKNUM(CalendarDay),\"/Hari \",CalendarDay-DATE(YEAR(CalendarDay),1,0)),CONCATENATE(\"Hari \",CalendarDay-DATE(YEAR(CalendarDay),1,0)))","v":"Hari 243"},{"$f":"IF(WEEKDAY(CalendarDay)=WeekStartValue,CONCATENATE(\"Minggu \",WEEKNUM(CalendarDay),\"/Hari \",CalendarDay-DATE(YEAR(CalendarDay),1,0)),CONCATENATE(\"Hari \",CalendarDay-DATE(YEAR(CalendarDay),1,0)))","v":"Hari 244"}]
[{"$nulls":4},"CATATAN"]
[]
[null,null,{"$f":"DaysAndWeeks+DATE(CalendarYear,8,1)-WEEKDAY(DATE(CalendarYear,8,1),(WeekStart=\"SEN\")+1)+36","v":"2018-09-02"},"2018-09-03"]
[null,null,{"$f":"IF(WEEKDAY(CalendarDay)=WeekStartValue,CONCATENATE(\"Minggu \",WEEKNUM(CalendarDay),\"/Hari \",CalendarDay-DATE(YEAR(CalendarDay),1,0)),CONCATENATE(\"Hari \",CalendarDay-DATE(YEAR(CalendarDay),1,0)))","v":"Minggu 36/Hari 245"},{"$f":"IF(WEEKDAY(CalendarDay)=WeekStartValue,CONCATENATE(\"Minggu \",WEEKNUM(CalendarDay),\"/Hari \",CalendarDay-DATE(YEAR(CalendarDay),1,0)),CONCATENATE(\"Hari \",CalendarDay-DATE(YEAR(CalendarDay),1,0)))","v":"Hari 246"}]

{"sheet":"SEP","index":8,"n_rows":20,"n_cols":9,"rows_kept":20,"merged":[[16,2,17,2],[17,4,19,8]]}
[null,"SEP",{"$f":"UPPER(TEXT(WeekStart,\"ddd\"))","v":"MGG"},{"$f":"UPPER(TEXT(D3,\"aaa\"))","v":"SEN"},"SEL","RAB","KAM","JUM","SAB"]
[null,{"$f":"CalendarYear","v":2018}]
[null,null,{"$f":"DaysAndWeeks+DATE(CalendarYear,9,1)-WEEKDAY(DATE(CalendarYear,9,1),(WeekStart=\"SEN\")+1)+1","v":"2018-08-26"},"2018-08-27","2018-08-28","2018-08-29","2018-08-30","2018-08-31","2018-09-01"]
[null,null,{"$f":"IF(DAY(CalendarDay)=1,CONCATENATE(\"Minggu \",WEEKNUM(CalendarDay),\"/Hari \",CalendarDay-DATE(YEAR(CalendarDay),1,0)),CONCATENATE(\"Hari \",CalendarDay-DATE(YEAR(CalendarDay),1,0)))","v":"Hari 238"},{"$f":"IF(DAY(CalendarDay)=1,CONCATENATE(\"Minggu \",WEEKNUM(CalendarDay),\"/Hari \",CalendarDay-DATE(YEAR(CalendarDay),1,0)),CONCATENATE(\"Hari \",CalendarDay-DATE(YEAR(CalendarDay),1,0)))","v":"Hari 239"},{"$f":"IF(DAY(CalendarDay)=1,CONCATENATE(\"Minggu \",WEEKNUM(CalendarDay),\"/Hari \",CalendarDay-DATE(YEAR(CalendarDay),1,0)),CONCATENATE(\"Hari \",CalendarDay-DATE(YEAR(CalendarDay),1,0)))","v":"Hari 240"},{"$f":"IF(DAY(CalendarDay)=1,CONCATENATE(\"Minggu \",WEEKNUM(CalendarDay),\"/Hari \",CalendarDay-DATE(YEAR(CalendarDay),1,0)),CONCATENATE(\"Hari \",CalendarDay-DATE(YEAR(CalendarDay),1,0)))","v":"Hari 241"},{"$f":"IF(DAY(CalendarDay)=1,CONCATENATE(\"Minggu \",WEEKNUM(CalendarDay),\"/Hari \",CalendarDay-DATE(YEAR(CalendarDay),1,0)),CONCATENATE(\"Hari \",CalendarDay-DATE(YEAR(CalendarDay),1,0)))","v":"Hari 242"},{"$f":"IF(DAY(CalendarDay)=1,CONCATENATE(\"Minggu \",WEEKNUM(CalendarDay),\"/Hari \",CalendarDay-DATE(YEAR(CalendarDay),1,0)),CONCATENATE(\"Hari \",CalendarDay-DATE(YEAR(CalendarDay),1,0)))","v":"Hari 243"},{"$f":"IF(DAY(CalendarDay)=1,CONCATENATE(\"Minggu \",WEEKNUM(CalendarDay),\"/Hari \",CalendarDay-DATE(YEAR(CalendarDay),1,0)),CONCATENATE(\"Hari \",CalendarDay-DATE(YEAR(CalendarDay),1,0)))","v":"Minggu 35/Hari 244"}]
[]
[null,null,{"$f":"DaysAndWeeks+DATE(CalendarYear,9,1)-WEEKDAY(DATE(CalendarYear,9,1),(WeekStart=\"SEN\")+1)+8","v":"2018-09-02"},"2018-09-03","2018-09-04","2018-09-05","2018-09-06","2018-09-07","2018-09-08"]
[null,null,{"$f":"IF(WEEKDAY(CalendarDay)=WeekStartValue,CONCATENATE(\"Minggu \",WEEKNUM(CalendarDay),\"/Hari \",CalendarDay-DATE(YEAR(CalendarDay),1,0)),CONCATENATE(\"Hari \",CalendarDay-DATE(YEAR(CalendarDay),1,0)))","v":"Minggu 36/Hari 245"},{"$f":"IF(WEEKDAY(CalendarDay)=WeekStartValue,CONCATENATE(\"Minggu \",WEEKNUM(CalendarDay),\"/Hari \",CalendarDay-DATE(YEAR(CalendarDay),1,0)),CONCATENATE(\"Hari \",CalendarDay-DATE(YEAR(CalendarDay),1,0)))","v":"Hari 246"},{"$f":"IF(WEEKDAY(CalendarDay)=WeekStartValue,CONCATENATE(\"Minggu \",WEEKNUM(CalendarDay),\"/Hari \",CalendarDay-DATE(YEAR(CalendarDay),1,0)),CONCATENATE(\"Hari \",CalendarDay-DATE(YEAR(CalendarDay),1,0)))","v":"Hari 247"},{"$f":"IF(WEEKDAY(CalendarDay)=WeekStartValue,CONCATENATE(\"Minggu \",WEEKNUM(CalendarDay),\"/Hari \",CalendarDay-DATE(YEAR(CalendarDay),1,0)),CONCATENATE(\"Hari \",CalendarDay-DATE(YEAR(CalendarDay),1,0)))","v":"Hari 248"},{"$f":"IF(WEEKDAY(CalendarDay)=WeekStartValue,CONCATENATE(\"Minggu \",WEEKNUM(CalendarDay),\"/Hari \",CalendarDay-DATE(YEAR(CalendarDay),1,0)),CONCATENATE(\"Hari \",CalendarDay-DATE(YEAR(CalendarDay),1,0)))","v":"Hari 249"},{"$f":"IF(WEEKDAY(CalendarDay)=WeekStartValue,CONCATENATE(\"Minggu \",WEEKNUM(CalendarDay),\"/Hari \",CalendarDay-DATE(YEAR(CalendarDay),1,0)),CONCATENATE(\"Hari \",CalendarDay-DATE(YEAR(CalendarDay),1,0)))","v":"Hari 250"},{"$f":"IF(WEEKDAY(CalendarDay)=WeekStartValue,CONCATENATE(\"Minggu \",WEEKNUM(CalendarDay),\"/Hari \",CalendarDay-DATE(YEAR(CalendarDay),1,0)),CONCATENATE(\"Hari \",CalendarDay-DATE(YEAR(CalendarDay),1,0)))","v":"Hari 251"}]
[]
[null,null,{"$f":"DaysAndWeeks+DATE(CalendarYear,9,1)-WEEKDAY(DATE(CalendarYear,9,1),(WeekStart=\"SEN\")+1)+15","v":"2018-09-09"},"2018-09-10","2018-09-11","2018-09-12","2018-09-13","2018-09-14","2018-09-15"]
[null,null,{"$f":"IF(WEEKDAY(CalendarDay)=WeekStartValue,CONCATENATE(\"Minggu \",WEEKNUM(CalendarDay),\"/Hari \",CalendarDay-DATE(YEAR(CalendarDay),1,0)),CONCATENATE(\"Hari \",CalendarDay-DATE(YEAR(CalendarDay),1,0)))","v":"Minggu 37/Hari 252"},{"$f":"IF(WEEKDAY(CalendarDay)=WeekStartValue,CONCATENATE(\"Minggu \",WEEKNUM(CalendarDay),\"/Hari \",CalendarDay-DATE(YEAR(CalendarDay),1,0)),CONCATENATE(\"Hari \",CalendarDay-DATE(YEAR(CalendarDay),1,0)))","v":"Hari 253"},{"$f":"IF(WEEKDAY(CalendarDay)=WeekStartValue,CONCATENATE(\"Minggu \",WEEKNUM(CalendarDay),\"/Hari \",CalendarDay-DATE(YEAR(CalendarDay),1,0)),CONCATENATE(\"Hari \",CalendarDay-DATE(YEAR(CalendarDay),1,0)))","v":"Hari 254"},{"$f":"IF(WEEKDAY(CalendarDay)=WeekStartValue,CONCATENATE(\"Minggu \",WEEKNUM(CalendarDay),\"/Hari \",CalendarDay-DATE(YEAR(CalendarDay),1,0)),CONCATENATE(\"Hari \",CalendarDay-DATE(YEAR(CalendarDay),1,0)))","v":"Hari 255"},{"$f":"IF(WEEKDAY(CalendarDay)=WeekStartValue,CONCATENATE(\"Minggu \",WEEKNUM(CalendarDay),\"/Hari \",CalendarDay-DATE(YEAR(CalendarDay),1,0)),CONCATENATE(\"Hari \",CalendarDay-DATE(YEAR(CalendarDay),1,0)))","v":"Hari 256"},{"$f":"IF(WEEKDAY(CalendarDay)=WeekStartValue,CONCATENATE(\"Minggu \",WEEKNUM(CalendarDay),\"/Hari \",CalendarDay-DATE(YEAR(CalendarDay),1,0)),CONCATENATE(\"Hari \",CalendarDay-DATE(YEAR(CalendarDay),1,0)))","v":"Hari 257"},{"$f":"IF(WEEKDAY(CalendarDay)=WeekStartValue,CONCATENATE(\"Minggu \",WEEKNUM(CalendarDay),\"/Hari \",CalendarDay-DATE(YEAR(CalendarDay),1,0)),CONCATENATE(\"Hari \",CalendarDay-DATE(YEAR(CalendarDay),1,0)))","v":"Hari 258"}]
[]
[null,null,{"$f":"DaysAndWeeks+DATE(CalendarYear,9,1)-WEEKDAY(DATE(CalendarYear,9,1),(WeekStart=\"SEN\")+1)+22","v":"2018-09-16"},"2018-09-17","2018-09-18","2018-09-19","2018-09-20","2018-09-21","2018-09-22"]
[null,null,{"$f":"IF(WEEKDAY(CalendarDay)=WeekStartValue,CONCATENATE(\"Minggu \",WEEKNUM(CalendarDay),\"/Hari \",CalendarDay-DATE(YEAR(CalendarDay),1,0)),CONCATENATE(\"Hari \",CalendarDay-DATE(YEAR(CalendarDay),1,0)))","v":"Minggu 38/Hari 259"},{"$f":"IF(WEEKDAY(CalendarDay)=WeekStartValue,CONCATENATE(\"Minggu \",WEEKNUM(CalendarDay),\"/Hari \",CalendarDay-DATE(YEAR(CalendarDay),1,0)),CONCATENATE(\"Hari \",CalendarDay-DATE(YEAR(CalendarDay),1,0)))","v":"Hari 260"},{"$f":"IF(WEEKDAY(CalendarDay)=WeekStartValue,CONCATENATE(\"Minggu \",WEEKNUM(CalendarDay),\"/Hari \",CalendarDay-DATE(YEAR(CalendarDay),1,0)),CONCATENATE(\"Hari \",CalendarDay-DATE(YEAR(CalendarDay),1,0)))","v":"Hari 261"},{"$f":"IF(WEEKDAY(CalendarDay)=WeekStartValue,CONCATENATE(\"Minggu \",WEEKNUM(CalendarDay),\"/Hari \",CalendarDay-DATE(YEAR(CalendarDay),1,0)),CONCATENATE(\"Hari \",CalendarDay-DATE(YEAR(CalendarDay),1,0)))","v":"Hari 262"},{"$f":"IF(WEEKDAY(CalendarDay)=WeekStartValue,CONCATENATE(\"Minggu \",WEEKNUM(CalendarDay),\"/Hari \",CalendarDay-DATE(YEAR(CalendarDay),1,0)),CONCATENATE(\"Hari \",CalendarDay-DATE(YEAR(CalendarDay),1,0)))","v":"Hari 263"},{"$f":"IF(WEEKDAY(CalendarDay)=WeekStartValue,CONCATENATE(\"Minggu \",WEEKNUM(CalendarDay),\"/Hari \",CalendarDay-DATE(YEAR(CalendarDay),1,0)),CONCATENATE(\"Hari \",CalendarDay-DATE(YEAR(CalendarDay),1,0)))","v":"Hari 264"},{"$f":"IF(WEEKDAY(CalendarDay)=WeekStartValue,CONCATENATE(\"Minggu \",WEEKNUM(CalendarDay),\"/Hari \",CalendarDay-DATE(YEAR(CalendarDay),1,0)),CONCATENATE(\"Hari \",CalendarDay-DATE(YEAR(CalendarDay),1,0)))","v":"Hari 265"}]
[]
[null,null,{"$f":"DaysAndWeeks+DATE(CalendarYear,9,1)-WEEKDAY(DATE(CalendarYear,9,1),(WeekStart=\"SEN\")+1)+29","v":"2018-09-23"},"2018-09-24","2018-09-25","2018-09-26","2018-09-27","2018-09-28","2018-09-29"]
[null,null,{"$f":"IF(WEEKDAY(CalendarDay)=WeekStartValue,CONCATENATE(\"Minggu \",WEEKNUM(CalendarDay),\"/Hari \",CalendarDay-DATE(YEAR(CalendarDay),1,0)),CONCATENATE(\"Hari \",CalendarDay-DATE(YEAR(CalendarDay),1,0)))","v":"Minggu 39/Hari 266"},{"$f":"IF(WEEKDAY(CalendarDay)=WeekStartValue,CONCATENATE(\"Minggu \",WEEKNUM(CalendarDay),\"/Hari \",CalendarDay-DATE(YEAR(CalendarDay),1,0)),CONCATENATE(\"Hari \",CalendarDay-DATE(YEAR(CalendarDay),1,0)))","v":"Hari 267"},{"$f":"IF(WEEKDAY(CalendarDay)=WeekStartValue,CONCATENATE(\"Minggu \",WEEKNUM(CalendarDay),\"/Hari \",CalendarDay-DATE(YEAR(CalendarDay),1,0)),CONCATENATE(\"Hari \",CalendarDay-DATE(YEAR(CalendarDay),1,0)))","v":"Hari 268"},{"$f":"IF(WEEKDAY(CalendarDay)=WeekStartValue,CONCATENATE(\"Minggu \",WEEKNUM(CalendarDay),\"/Hari \",CalendarDay-DATE(YEAR(CalendarDay),1,0)),CONCATENATE(\"Hari \",CalendarDay-DATE(YEAR(CalendarDay),1,0)))","v":"Hari 269"},{"$f":"IF(WEEKDAY(CalendarDay)=WeekStartValue,CONCATENATE(\"Minggu \",WEEKNUM(CalendarDay),\"/Hari \",CalendarDay-DATE(YEAR(CalendarDay),1,0)),CONCATENATE(\"Hari \",CalendarDay-DATE(YEAR(CalendarDay),1,0)))","v":"Hari 270"},{"$f":"IF(WEEKDAY(CalendarDay)=WeekStartValue,CONCATENATE(\"Minggu \",WEEKNUM(CalendarDay),\"/Hari \",CalendarDay-DATE(YEAR(CalendarDay),1,0)),CONCATENATE(\"Hari \",CalendarDay-DATE(YEAR(CalendarDay),1,0)))","v":"Hari 271"},{"$f":"IF(WEEKDAY(CalendarDay)=WeekStartValue,CONCATENATE(\"Minggu \",WEEKNUM(CalendarDay),\"/Hari \",CalendarDay-DATE(YEAR(CalendarDay),1,0)),CONCATENATE(\"Hari \",CalendarDay-DATE(YEAR(CalendarDay),1,0)))","v":"Hari 272"}]
[{"$nulls":4},"CATATAN"]
[]
[null,null,{"$f":"DaysAndWeeks+DATE(CalendarYear,9,1)-WEEKDAY(DATE(CalendarYear,9,1),(WeekStart=\"SEN\")+1)+36","v":"2018-09-30"},"2018-10-01"]
[null,null,{"$f":"IF(WEEKDAY(CalendarDay)=WeekStartValue,CONCATENATE(\"Minggu \",WEEKNUM(CalendarDay),\"/Hari \",CalendarDay-DATE(YEAR(CalendarDay),1,0)),CONCATENATE(\"Hari \",CalendarDay-DATE(YEAR(CalendarDay),1,0)))","v":"Minggu 40/Hari 273"},{"$f":"IF(WEEKDAY(CalendarDay)=WeekStartValue,CONCATENATE(\"Minggu \",WEEKNUM(CalendarDay),\"/Hari \",CalendarDay-DATE(YEAR(CalendarDay),1,0)),CONCATENATE(\"Hari \",CalendarDay-DATE(YEAR(CalendarDay),1,0)))","v":"Hari 274"}]

{"sheet":"OKT","index":9,"n_rows":20,"n_cols":9,"rows_kept":20,"merged":[[16,2,17,2],[17,4,19,8]]}
[null,"OKT",{"$f":"UPPER(TEXT(WeekStart,\"ddd\"))","v":"MGG"},{"$f":"UPPER(TEXT(D3,\"aaa\"))","v":"SEN"},"SEL","RAB","KAM","JUM","SAB"]
[null,{"$f":"CalendarYear","v":2018}]
[null,null,{"$f":"DaysAndWeeks+DATE(CalendarYear,10,1)-WEEKDAY(DATE(CalendarYear,10,1),(WeekStart=\"SEN\")+1)+1","v":"2018-09-30"},"2018-10-01","2018-10-02","2018-10-03","2018-10-04","2018-10-05","2018-10-06"]
[null,null,{"$f":"IF(DAY(CalendarDay)=1,CONCATENATE(\"Minggu \",WEEKNUM(CalendarDay),\"/Hari \",CalendarDay-DATE(YEAR(CalendarDay),1,0)),CONCATENATE(\"Hari \",CalendarDay-DATE(YEAR(CalendarDay),1,0)))","v":"Hari 273"},{"$f":"IF(DAY(CalendarDay)=1,CONCATENATE(\"Minggu \",WEEKNUM(CalendarDay),\"/Hari \",CalendarDay-DATE(YEAR(CalendarDay),1,0)),CONCATENATE(\"Hari \",CalendarDay-DATE(YEAR(CalendarDay),1,0)))","v":"Minggu 40/Hari 274"},{"$f":"IF(DAY(CalendarDay)=1,CONCATENATE(\"Minggu \",WEEKNUM(CalendarDay),\"/Hari \",CalendarDay-DATE(YEAR(CalendarDay),1,0)),CONCATENATE(\"Hari \",CalendarDay-DATE(YEAR(CalendarDay),1,0)))","v":"Hari 275"},{"$f":"IF(DAY(CalendarDay)=1,CONCATENATE(\"Minggu \",WEEKNUM(CalendarDay),\"/Hari \",CalendarDay-DATE(YEAR(CalendarDay),1,0)),CONCATENATE(\"Hari \",CalendarDay-DATE(YEAR(CalendarDay),1,0)))","v":"Hari 276"},{"$f":"IF(DAY(CalendarDay)=1,CONCATENATE(\"Minggu \",WEEKNUM(CalendarDay),\"/Hari \",CalendarDay-DATE(YEAR(CalendarDay),1,0)),CONCATENATE(\"Hari \",CalendarDay-DATE(YEAR(CalendarDay),1,0)))","v":"Hari 277"},{"$f":"IF(DAY(CalendarDay)=1,CONCATENATE(\"Minggu \",WEEKNUM(CalendarDay),\"/Hari \",CalendarDay-DATE(YEAR(CalendarDay),1,0)),CONCATENATE(\"Hari \",CalendarDay-DATE(YEAR(CalendarDay),1,0)))","v":"Hari 278"},{"$f":"IF(DAY(CalendarDay)=1,CONCATENATE(\"Minggu \",WEEKNUM(CalendarDay),\"/Hari \",CalendarDay-DATE(YEAR(CalendarDay),1,0)),CONCATENATE(\"Hari \",CalendarDay-DATE(YEAR(CalendarDay),1,0)))","v":"Hari 279"}]
[]
[null,null,{"$f":"DaysAndWeeks+DATE(CalendarYear,10,1)-WEEKDAY(DATE(CalendarYear,10,1),(WeekStart=\"SEN\")+1)+8","v":"2018-10-07"},"2018-10-08","2018-10-09","2018-10-10","2018-10-11","2018-10-12","2018-10-13"]
[null,null,{"$f":"IF(WEEKDAY(CalendarDay)=WeekStartValue,CONCATENATE(\"Minggu \",WEEKNUM(CalendarDay),\"/Hari \",CalendarDay-DATE(YEAR(CalendarDay),1,0)),CONCATENATE(\"Hari \",CalendarDay-DATE(YEAR(CalendarDay),1,0)))","v":"Minggu 41/Hari 280"},{"$f":"IF(WEEKDAY(CalendarDay)=WeekStartValue,CONCATENATE(\"Minggu \",WEEKNUM(CalendarDay),\"/Hari \",CalendarDay-DATE(YEAR(CalendarDay),1,0)),CONCATENATE(\"Hari \",CalendarDay-DATE(YEAR(CalendarDay),1,0)))","v":"Hari 281"},{"$f":"IF(WEEKDAY(CalendarDay)=WeekStartValue,CONCATENATE(\"Minggu \",WEEKNUM(CalendarDay),\"/Hari \",CalendarDay-DATE(YEAR(CalendarDay),1,0)),CONCATENATE(\"Hari \",CalendarDay-DATE(YEAR(CalendarDay),1,0)))","v":"Hari 282"},{"$f":"IF(WEEKDAY(CalendarDay)=WeekStartValue,CONCATENATE(\"Minggu \",WEEKNUM(CalendarDay),\"/Hari \",CalendarDay-DATE(YEAR(CalendarDay),1,0)),CONCATENATE(\"Hari \",CalendarDay-DATE(YEAR(CalendarDay),1,0)))","v":"Hari 283"},{"$f":"IF(WEEKDAY(CalendarDay)=WeekStartValue,CONCATENATE(\"Minggu \",WEEKNUM(CalendarDay),\"/Hari \",CalendarDay-DATE(YEAR(CalendarDay),1,0)),CONCATENATE(\"Hari \",CalendarDay-DATE(YEAR(CalendarDay),1,0)))","v":"Hari 284"},{"$f":"IF(WEEKDAY(CalendarDay)=WeekStartValue,CONCATENATE(\"Minggu \",WEEKNUM(CalendarDay),\"/Hari \",CalendarDay-DATE(YEAR(CalendarDay),1,0)),CONCATENATE(\"Hari \",CalendarDay-DATE(YEAR(CalendarDay),1,0)))","v":"Hari 285"},{"$f":"IF(WEEKDAY(CalendarDay)=WeekStartValue,CONCATENATE(\"Minggu \",WEEKNUM(CalendarDay),\"/Hari \",CalendarDay-DATE(YEAR(CalendarDay),1,0)),CONCATENATE(\"Hari \",CalendarDay-DATE(YEAR(CalendarDay),1,0)))","v":"Hari 286"}]
[]
[null,null,{"$f":"DaysAndWeeks+DATE(CalendarYear,10,1)-WEEKDAY(DATE(CalendarYear,10,1),(WeekStart=\"SEN\")+1)+15","v":"2018-10-14"},"2018-10-15","2018-10-16","2018-10-17","2018-10-18","2018-10-19","2018-10-20"]
[null,null,{"$f":"IF(WEEKDAY(CalendarDay)=WeekStartValue,CONCATENATE(\"Minggu \",WEEKNUM(CalendarDay),\"/Hari \",CalendarDay-DATE(YEAR(CalendarDay),1,0)),CONCATENATE(\"Hari \",CalendarDay-DATE(YEAR(CalendarDay),1,0)))","v":"Minggu 42/Hari 287"},{"$f":"IF(WEEKDAY(CalendarDay)=WeekStartValue,CONCATENATE(\"Minggu \",WEEKNUM(CalendarDay),\"/Hari \",CalendarDay-DATE(YEAR(CalendarDay),1,0)),CONCATENATE(\"Hari \",CalendarDay-DATE(YEAR(CalendarDay),1,0)))","v":"Hari 288"},{"$f":"IF(WEEKDAY(CalendarDay)=WeekStartValue,CONCATENATE(\"Minggu \",WEEKNUM(CalendarDay),\"/Hari \",CalendarDay-DATE(YEAR(CalendarDay),1,0)),CONCATENATE(\"Hari \",CalendarDay-DATE(YEAR(CalendarDay),1,0)))","v":"Hari 289"},{"$f":"IF(WEEKDAY(CalendarDay)=WeekStartValue,CONCATENATE(\"Minggu \",WEEKNUM(CalendarDay),\"/Hari \",CalendarDay-DATE(YEAR(CalendarDay),1,0)),CONCATENATE(\"Hari \",CalendarDay-DATE(YEAR(CalendarDay),1,0)))","v":"Hari 290"},{"$f":"IF(WEEKDAY(CalendarDay)=WeekStartValue,CONCATENATE(\"Minggu \",WEEKNUM(CalendarDay),\"/Hari \",CalendarDay-DATE(YEAR(CalendarDay),1,0)),CONCATENATE(\"Hari \",CalendarDay-DATE(YEAR(CalendarDay),1,0)))","v":"Hari 291"},{"$f":"IF(WEEKDAY(CalendarDay)=WeekStartValue,CONCATENATE(\"Minggu \",WEEKNUM(CalendarDay),\"/Hari \",CalendarDay-DATE(YEAR(CalendarDay),1,0)),CONCATENATE(\"Hari \",CalendarDay-DATE(YEAR(CalendarDay),1,0)))","v":"Hari 292"},{"$f":"IF(WEEKDAY(CalendarDay)=WeekStartValue,CONCATENATE(\"Minggu \",WEEKNUM(CalendarDay),\"/Hari \",CalendarDay-DATE(YEAR(CalendarDay),1,0)),CONCATENATE(\"Hari \",CalendarDay-DATE(YEAR(CalendarDay),1,0)))","v":"Hari 293"}]
[]
[null,null,{"$f":"DaysAndWeeks+DATE(CalendarYear,10,1)-WEEKDAY(DATE(CalendarYear,10,1),(WeekStart=\"SEN\")+1)+22","v":"2018-10-21"},"2018-10-22","2018-10-23","2018-10-24","2018-10-25","2018-10-26","2018-10-27"]
[null,null,{"$f":"IF(WEEKDAY(CalendarDay)=WeekStartValue,CONCATENATE(\"Minggu \",WEEKNUM(CalendarDay),\"/Hari \",CalendarDay-DATE(YEAR(CalendarDay),1,0)),CONCATENATE(\"Hari \",CalendarDay-DATE(YEAR(CalendarDay),1,0)))","v":"Minggu 43/Hari 294"},{"$f":"IF(WEEKDAY(CalendarDay)=WeekStartValue,CONCATENATE(\"Minggu \",WEEKNUM(CalendarDay),\"/Hari \",CalendarDay-DATE(YEAR(CalendarDay),1,0)),CONCATENATE(\"Hari \",CalendarDay-DATE(YEAR(CalendarDay),1,0)))","v":"Hari 295"},{"$f":"IF(WEEKDAY(CalendarDay)=WeekStartValue,CONCATENATE(\"Minggu \",WEEKNUM(CalendarDay),\"/Hari \",CalendarDay-DATE(YEAR(CalendarDay),1,0)),CONCATENATE(\"Hari \",CalendarDay-DATE(YEAR(CalendarDay),1,0)))","v":"Hari 296"},{"$f":"IF(WEEKDAY(CalendarDay)=WeekStartValue,CONCATENATE(\"Minggu \",WEEKNUM(CalendarDay),\"/Hari \",CalendarDay-DATE(YEAR(CalendarDay),1,0)),CONCATENATE(\"Hari \",CalendarDay-DATE(YEAR(CalendarDay),1,0)))","v":"Hari 297"},{"$f":"IF(WEEKDAY(CalendarDay)=WeekStartValue,CONCATENATE(\"Minggu \",WEEKNUM(CalendarDay),\"/Hari \",CalendarDay-DATE(YEAR(CalendarDay),1,0)),CONCATENATE(\"Hari \",CalendarDay-DATE(YEAR(CalendarDay),1,0)))","v":"Hari 298"},{"$f":"IF(WEEKDAY(CalendarDay)=WeekStartValue,CONCATENATE(\"Minggu \",WEEKNUM(CalendarDay),\"/Hari \",CalendarDay-DATE(YEAR(CalendarDay),1,0)),CONCATENATE(\"Hari \",CalendarDay-DATE(YEAR(CalendarDay),1,0)))","v":"Hari 299"},{"$f":"IF(WEEKDAY(CalendarDay)=WeekStartValue,CONCATENATE(\"Minggu \",WEEKNUM(CalendarDay),\"/Hari \",CalendarDay-DATE(YEAR(CalendarDay),1,0)),CONCATENATE(\"Hari \",CalendarDay-DATE(YEAR(CalendarDay),1,0)))","v":"Hari 300"}]
[]
[null,null,{"$f":"DaysAndWeeks+DATE(CalendarYear,10,1)-WEEKDAY(DATE(CalendarYear,10,1),(WeekStart=\"SEN\")+1)+29","v":"2018-10-28"},"2018-10-29","2018-10-30","2018-10-31","2018-11-01","2018-11-02","2018-11-03"]
[null,null,{"$f":"IF(WEEKDAY(CalendarDay)=WeekStartValue,CONCATENATE(\"Minggu \",WEEKNUM(CalendarDay),\"/Hari \",CalendarDay-DATE(YEAR(CalendarDay),1,0)),CONCATENATE(\"Hari \",CalendarDay-DATE(YEAR(CalendarDay),1,0)))","v":"Minggu 44/Hari 301"},{"$f":"IF(WEEKDAY(CalendarDay)=WeekStartValue,CONCATENATE(\"Minggu \",WEEKNUM(CalendarDay),\"/Hari \",CalendarDay-DATE(YEAR(CalendarDay),1,0)),CONCATENATE(\"Hari \",CalendarDay-DATE(YEAR(CalendarDay),1,0)))","v":"Hari 302"},{"$f":"IF(WEEKDAY(CalendarDay)=WeekStartValue,CONCATENATE(\"Minggu \",WEEKNUM(CalendarDay),\"/Hari \",CalendarDay-DATE(YEAR(CalendarDay),1,0)),CONCATENATE(\"Hari \",CalendarDay-DATE(YEAR(CalendarDay),1,0)))","v":"Hari 303"},{"$f":"IF(WEEKDAY(CalendarDay)=WeekStartValue,CONCATENATE(\"Minggu \",WEEKNUM(CalendarDay),\"/Hari \",CalendarDay-DATE(YEAR(CalendarDay),1,0)),CONCATENATE(\"Hari \",CalendarDay-DATE(YEAR(CalendarDay),1,0)))","v":"Hari 304"},{"$f":"IF(WEEKDAY(CalendarDay)=WeekStartValue,CONCATENATE(\"Minggu \",WEEKNUM(CalendarDay),\"/Hari \",CalendarDay-DATE(YEAR(CalendarDay),1,0)),CONCATENATE(\"Hari \",CalendarDay-DATE(YEAR(CalendarDay),1,0)))","v":"Hari 305"},{"$f":"IF(WEEKDAY(CalendarDay)=WeekStartValue,CONCATENATE(\"Minggu \",WEEKNUM(CalendarDay),\"/Hari \",CalendarDay-DATE(YEAR(CalendarDay),1,0)),CONCATENATE(\"Hari \",CalendarDay-DATE(YEAR(CalendarDay),1,0)))","v":"Hari 306"},{"$f":"IF(WEEKDAY(CalendarDay)=WeekStartValue,CONCATENATE(\"Minggu \",WEEKNUM(CalendarDay),\"/Hari \",CalendarDay-DATE(YEAR(CalendarDay),1,0)),CONCATENATE(\"Hari \",CalendarDay-DATE(YEAR(CalendarDay),1,0)))","v":"Hari 307"}]
[{"$nulls":4},"CATATAN"]
[]
[null,null,{"$f":"DaysAndWeeks+DATE(CalendarYear,10,1)-WEEKDAY(DATE(CalendarYear,10,1),(WeekStart=\"SEN\")+1)+36","v":"2018-11-04"},"2018-11-05"]
[null,null,{"$f":"IF(WEEKDAY(CalendarDay)=WeekStartValue,CONCATENATE(\"Minggu \",WEEKNUM(CalendarDay),\"/Hari \",CalendarDay-DATE(YEAR(CalendarDay),1,0)),CONCATENATE(\"Hari \",CalendarDay-DATE(YEAR(CalendarDay),1,0)))","v":"Minggu 45/Hari 308"},{"$f":"IF(WEEKDAY(CalendarDay)=WeekStartValue,CONCATENATE(\"Minggu \",WEEKNUM(CalendarDay),\"/Hari \",CalendarDay-DATE(YEAR(CalendarDay),1,0)),CONCATENATE(\"Hari \",CalendarDay-DATE(YEAR(CalendarDay),1,0)))","v":"Hari 309"}]

{"sheet":"NOV","index":10,"n_rows":20,"n_cols":9,"rows_kept":20,"merged":[[16,2,17,2],[17,4,19,8]]}
[null,"NOV",{"$f":"UPPER(TEXT(WeekStart,\"ddd\"))","v":"MGG"},{"$f":"UPPER(TEXT(D3,\"aaa\"))","v":"SEN"},"SEL","RAB","KAM","JUM","SAB"]
[null,{"$f":"CalendarYear","v":2018}]
[null,null,{"$f":"DaysAndWeeks+DATE(CalendarYear,11,1)-WEEKDAY(DATE(CalendarYear,11,1),(WeekStart=\"SEN\")+1)+1","v":"2018-10-28"},"2018-10-29","2018-10-30","2018-10-31","2018-11-01","2018-11-02","2018-11-03"]
[null,null,{"$f":"IF(DAY(CalendarDay)=1,CONCATENATE(\"Minggu \",WEEKNUM(CalendarDay),\"/Hari \",CalendarDay-DATE(YEAR(CalendarDay),1,0)),CONCATENATE(\"Hari \",CalendarDay-DATE(YEAR(CalendarDay),1,0)))","v":"Hari 301"},{"$f":"IF(DAY(CalendarDay)=1,CONCATENATE(\"Minggu \",WEEKNUM(CalendarDay),\"/Hari \",CalendarDay-DATE(YEAR(CalendarDay),1,0)),CONCATENATE(\"Hari \",CalendarDay-DATE(YEAR(CalendarDay),1,0)))","v":"Hari 302"},{"$f":"IF(DAY(CalendarDay)=1,CONCATENATE(\"Minggu \",WEEKNUM(CalendarDay),\"/Hari \",CalendarDay-DATE(YEAR(CalendarDay),1,0)),CONCATENATE(\"Hari \",CalendarDay-DATE(YEAR(CalendarDay),1,0)))","v":"Hari 303"},{"$f":"IF(DAY(CalendarDay)=1,CONCATENATE(\"Minggu \",WEEKNUM(CalendarDay),\"/Hari \",CalendarDay-DATE(YEAR(CalendarDay),1,0)),CONCATENATE(\"Hari \",CalendarDay-DATE(YEAR(CalendarDay),1,0)))","v":"Hari 304"},{"$f":"IF(DAY(CalendarDay)=1,CONCATENATE(\"Minggu \",WEEKNUM(CalendarDay),\"/Hari \",CalendarDay-DATE(YEAR(CalendarDay),1,0)),CONCATENATE(\"Hari \",CalendarDay-DATE(YEAR(CalendarDay),1,0)))","v":"Minggu 44/Hari 305"},{"$f":"IF(DAY(CalendarDay)=1,CONCATENATE(\"Minggu \",WEEKNUM(CalendarDay),\"/Hari \",CalendarDay-DATE(YEAR(CalendarDay),1,0)),CONCATENATE(\"Hari \",CalendarDay-DATE(YEAR(CalendarDay),1,0)))","v":"Hari 306"},{"$f":"IF(DAY(CalendarDay)=1,CONCATENATE(\"Minggu \",WEEKNUM(CalendarDay),\"/Hari \",CalendarDay-DATE(YEAR(CalendarDay),1,0)),CONCATENATE(\"Hari \",CalendarDay-DATE(YEAR(CalendarDay),1,0)))","v":"Hari 307"}]
[]
[null,null,{"$f":"DaysAndWeeks+DATE(CalendarYear,11,1)-WEEKDAY(DATE(CalendarYear,11,1),(WeekStart=\"SEN\")+1)+8","v":"2018-11-04"},"2018-11-05","2018-11-06","2018-11-07","2018-11-08","2018-11-09","2018-11-10"]
[null,null,{"$f":"IF(WEEKDAY(CalendarDay)=WeekStartValue,CONCATENATE(\"Minggu \",WEEKNUM(CalendarDay),\"/Hari \",CalendarDay-DATE(YEAR(CalendarDay),1,0)),CONCATENATE(\"Hari \",CalendarDay-DATE(YEAR(CalendarDay),1,0)))","v":"Minggu 45/Hari 308"},{"$f":"IF(WEEKDAY(CalendarDay)=WeekStartValue,CONCATENATE(\"Minggu \",WEEKNUM(CalendarDay),\"/Hari \",CalendarDay-DATE(YEAR(CalendarDay),1,0)),CONCATENATE(\"Hari \",CalendarDay-DATE(YEAR(CalendarDay),1,0)))","v":"Hari 309"},{"$f":"IF(WEEKDAY(CalendarDay)=WeekStartValue,CONCATENATE(\"Minggu \",WEEKNUM(CalendarDay),\"/Hari \",CalendarDay-DATE(YEAR(CalendarDay),1,0)),CONCATENATE(\"Hari \",CalendarDay-DATE(YEAR(CalendarDay),1,0)))","v":"Hari 310"},{"$f":"IF(WEEKDAY(CalendarDay)=WeekStartValue,CONCATENATE(\"Minggu \",WEEKNUM(CalendarDay),\"/Hari \",CalendarDay-DATE(YEAR(CalendarDay),1,0)),CONCATENATE(\"Hari \",CalendarDay-DATE(YEAR(CalendarDay),1,0)))","v":"Hari 311"},{"$f":"IF(WEEKDAY(CalendarDay)=WeekStartValue,CONCATENATE(\"Minggu \",WEEKNUM(CalendarDay),\"/Hari \",CalendarDay-DATE(YEAR(CalendarDay),1,0)),CONCATENATE(\"Hari \",CalendarDay-DATE(YEAR(CalendarDay),1,0)))","v":"Hari 312"},{"$f":"IF(WEEKDAY(CalendarDay)=WeekStartValue,CONCATENATE(\"Minggu \",WEEKNUM(CalendarDay),\"/Hari \",CalendarDay-DATE(YEAR(CalendarDay),1,0)),CONCATENATE(\"Hari \",CalendarDay-DATE(YEAR(CalendarDay),1,0)))","v":"Hari 313"},{"$f":"IF(WEEKDAY(CalendarDay)=WeekStartValue,CONCATENATE(\"Minggu \",WEEKNUM(CalendarDay),\"/Hari \",CalendarDay-DATE(YEAR(CalendarDay),1,0)),CONCATENATE(\"Hari \",CalendarDay-DATE(YEAR(CalendarDay),1,0)))","v":"Hari 314"}]
[]
[null,null,{"$f":"DaysAndWeeks+DATE(CalendarYear,11,1)-WEEKDAY(DATE(CalendarYear,11,1),(WeekStart=\"SEN\")+1)+15","v":"2018-11-11"},"2018-11-12","2018-11-13","2018-11-14","2018-11-15","2018-11-16","2018-11-17"]
[null,null,{"$f":"IF(WEEKDAY(CalendarDay)=WeekStartValue,CONCATENATE(\"Minggu \",WEEKNUM(CalendarDay),\"/Hari \",CalendarDay-DATE(YEAR(CalendarDay),1,0)),CONCATENATE(\"Hari \",CalendarDay-DATE(YEAR(CalendarDay),1,0)))","v":"Minggu 46/Hari 315"},{"$f":"IF(WEEKDAY(CalendarDay)=WeekStartValue,CONCATENATE(\"Minggu \",WEEKNUM(CalendarDay),\"/Hari \",CalendarDay-DATE(YEAR(CalendarDay),1,0)),CONCATENATE(\"Hari \",CalendarDay-DATE(YEAR(CalendarDay),1,0)))","v":"Hari 316"},{"$f":"IF(WEEKDAY(CalendarDay)=WeekStartValue,CONCATENATE(\"Minggu \",WEEKNUM(CalendarDay),\"/Hari \",CalendarDay-DATE(YEAR(CalendarDay),1,0)),CONCATENATE(\"Hari \",CalendarDay-DATE(YEAR(CalendarDay),1,0)))","v":"Hari 317"},{"$f":"IF(WEEKDAY(CalendarDay)=WeekStartValue,CONCATENATE(\"Minggu \",WEEKNUM(CalendarDay),\"/Hari \",CalendarDay-DATE(YEAR(CalendarDay),1,0)),CONCATENATE(\"Hari \",CalendarDay-DATE(YEAR(CalendarDay),1,0)))","v":"Hari 318"},{"$f":"IF(WEEKDAY(CalendarDay)=WeekStartValue,CONCATENATE(\"Minggu \",WEEKNUM(CalendarDay),\"/Hari \",CalendarDay-DATE(YEAR(CalendarDay),1,0)),CONCATENATE(\"Hari \",CalendarDay-DATE(YEAR(CalendarDay),1,0)))","v":"Hari 319"},{"$f":"IF(WEEKDAY(CalendarDay)=WeekStartValue,CONCATENATE(\"Minggu \",WEEKNUM(CalendarDay),\"/Hari \",CalendarDay-DATE(YEAR(CalendarDay),1,0)),CONCATENATE(\"Hari \",CalendarDay-DATE(YEAR(CalendarDay),1,0)))","v":"Hari 320"},{"$f":"IF(WEEKDAY(CalendarDay)=WeekStartValue,CONCATENATE(\"Minggu \",WEEKNUM(CalendarDay),\"/Hari \",CalendarDay-DATE(YEAR(CalendarDay),1,0)),CONCATENATE(\"Hari \",CalendarDay-DATE(YEAR(CalendarDay),1,0)))","v":"Hari 321"}]
[]
[null,null,{"$f":"DaysAndWeeks+DATE(CalendarYear,11,1)-WEEKDAY(DATE(CalendarYear,11,1),(WeekStart=\"SEN\")+1)+22","v":"2018-11-18"},"2018-11-19","2018-11-20","2018-11-21","2018-11-22","2018-11-23","2018-11-24"]
[null,null,{"$f":"IF(WEEKDAY(CalendarDay)=WeekStartValue,CONCATENATE(\"Minggu \",WEEKNUM(CalendarDay),\"/Hari \",CalendarDay-DATE(YEAR(CalendarDay),1,0)),CONCATENATE(\"Hari \",CalendarDay-DATE(YEAR(CalendarDay),1,0)))","v":"Minggu 47/Hari 322"},{"$f":"IF(WEEKDAY(CalendarDay)=WeekStartValue,CONCATENATE(\"Minggu \",WEEKNUM(CalendarDay),\"/Hari \",CalendarDay-DATE(YEAR(CalendarDay),1,0)),CONCATENATE(\"Hari \",CalendarDay-DATE(YEAR(CalendarDay),1,0)))","v":"Hari 323"},{"$f":"IF(WEEKDAY(CalendarDay)=WeekStartValue,CONCATENATE(\"Minggu \",WEEKNUM(CalendarDay),\"/Hari \",CalendarDay-DATE(YEAR(CalendarDay),1,0)),CONCATENATE(\"Hari \",CalendarDay-DATE(YEAR(CalendarDay),1,0)))","v":"Hari 324"},{"$f":"IF(WEEKDAY(CalendarDay)=WeekStartValue,CONCATENATE(\"Minggu \",WEEKNUM(CalendarDay),\"/Hari \",CalendarDay-DATE(YEAR(CalendarDay),1,0)),CONCATENATE(\"Hari \",CalendarDay-DATE(YEAR(CalendarDay),1,0)))","v":"Hari 325"},{"$f":"IF(WEEKDAY(CalendarDay)=WeekStartValue,CONCATENATE(\"Minggu \",WEEKNUM(CalendarDay),\"/Hari \",CalendarDay-DATE(YEAR(CalendarDay),1,0)),CONCATENATE(\"Hari \",CalendarDay-DATE(YEAR(CalendarDay),1,0)))","v":"Hari 326"},{"$f":"IF(WEEKDAY(CalendarDay)=WeekStartValue,CONCATENATE(\"Minggu \",WEEKNUM(CalendarDay),\"/Hari \",CalendarDay-DATE(YEAR(CalendarDay),1,0)),CONCATENATE(\"Hari \",CalendarDay-DATE(YEAR(CalendarDay),1,0)))","v":"Hari 327"},{"$f":"IF(WEEKDAY(CalendarDay)=WeekStartValue,CONCATENATE(\"Minggu \",WEEKNUM(CalendarDay),\"/Hari \",CalendarDay-DATE(YEAR(CalendarDay),1,0)),CONCATENATE(\"Hari \",CalendarDay-DATE(YEAR(CalendarDay),1,0)))","v":"Hari 328"}]
[]
[null,null,{"$f":"DaysAndWeeks+DATE(CalendarYear,11,1)-WEEKDAY(DATE(CalendarYear,11,1),(WeekStart=\"SEN\")+1)+29","v":"2018-11-25"},"2018-11-26","2018-11-27","2018-11-28","2018-11-29","2018-11-30","2018-12-01"]
[null,null,{"$f":"IF(WEEKDAY(CalendarDay)=WeekStartValue,CONCATENATE(\"Minggu \",WEEKNUM(CalendarDay),\"/Hari \",CalendarDay-DATE(YEAR(CalendarDay),1,0)),CONCATENATE(\"Hari \",CalendarDay-DATE(YEAR(CalendarDay),1,0)))","v":"Minggu 48/Hari 329"},{"$f":"IF(WEEKDAY(CalendarDay)=WeekStartValue,CONCATENATE(\"Minggu \",WEEKNUM(CalendarDay),\"/Hari \",CalendarDay-DATE(YEAR(CalendarDay),1,0)),CONCATENATE(\"Hari \",CalendarDay-DATE(YEAR(CalendarDay),1,0)))","v":"Hari 330"},{"$f":"IF(WEEKDAY(CalendarDay)=WeekStartValue,CONCATENATE(\"Minggu \",WEEKNUM(CalendarDay),\"/Hari \",CalendarDay-DATE(YEAR(CalendarDay),1,0)),CONCATENATE(\"Hari \",CalendarDay-DATE(YEAR(CalendarDay),1,0)))","v":"Hari 331"},{"$f":"IF(WEEKDAY(CalendarDay)=WeekStartValue,CONCATENATE(\"Minggu \",WEEKNUM(CalendarDay),\"/Hari \",CalendarDay-DATE(YEAR(CalendarDay),1,0)),CONCATENATE(\"Hari \",CalendarDay-DATE(YEAR(CalendarDay),1,0)))","v":"Hari 332"},{"$f":"IF(WEEKDAY(CalendarDay)=WeekStartValue,CONCATENATE(\"Minggu \",WEEKNUM(CalendarDay),\"/Hari \",CalendarDay-DATE(YEAR(CalendarDay),1,0)),CONCATENATE(\"Hari \",CalendarDay-DATE(YEAR(CalendarDay),1,0)))","v":"Hari 333"},{"$f":"IF(WEEKDAY(CalendarDay)=WeekStartValue,CONCATENATE(\"Minggu \",WEEKNUM(CalendarDay),\"/Hari \",CalendarDay-DATE(YEAR(CalendarDay),1,0)),CONCATENATE(\"Hari \",CalendarDay-DATE(YEAR(CalendarDay),1,0)))","v":"Hari 334"},{"$f":"IF(WEEKDAY(CalendarDay)=WeekStartValue,CONCATENATE(\"Minggu \",WEEKNUM(CalendarDay),\"/Hari \",CalendarDay-DATE(YEAR(CalendarDay),1,0)),CONCATENATE(\"Hari \",CalendarDay-DATE(YEAR(CalendarDay),1,0)))","v":"Hari 335"}]
[{"$nulls":4},"CATATAN"]
[]
[null,null,{"$f":"DaysAndWeeks+DATE(CalendarYear,11,1)-WEEKDAY(DATE(CalendarYear,11,1),(WeekStart=\"SEN\")+1)+36","v":"2018-12-02"},"2018-12-03"]
[null,null,{"$f":"IF(WEEKDAY(CalendarDay)=WeekStartValue,CONCATENATE(\"Minggu \",WEEKNUM(CalendarDay),\"/Hari \",CalendarDay-DATE(YEAR(CalendarDay),1,0)),CONCATENATE(\"Hari \",CalendarDay-DATE(YEAR(CalendarDay),1,0)))","v":"Minggu 49/Hari 336"},{"$f":"IF(WEEKDAY(CalendarDay)=WeekStartValue,CONCATENATE(\"Minggu \",WEEKNUM(CalendarDay),\"/Hari \",CalendarDay-DATE(YEAR(CalendarDay),1,0)),CONCATENATE(\"Hari \",CalendarDay-DATE(YEAR(CalendarDay),1,0)))","v":"Hari 337"}]

{"sheet":"DES","index":11,"n_rows":20,"n_cols":9,"rows_kept":20,"merged":[[16,2,17,2],[17,4,19,8]]}
[null,"DES",{"$f":"UPPER(TEXT(WeekStart,\"ddd\"))","v":"MGG"},{"$f":"UPPER(TEXT(D3,\"aaa\"))","v":"SEN"},"SEL","RAB","KAM","JUM","SAB"]
[null,{"$f":"CalendarYear","v":2018}]
[null,null,{"$f":"DaysAndWeeks+DATE(CalendarYear,12,1)-WEEKDAY(DATE(CalendarYear,12,1),(WeekStart=\"SEN\")+1)+1","v":"2018-11-25"},"2018-11-26","2018-11-27","2018-11-28","2018-11-29","2018-11-30","2018-12-01"]
[null,null,{"$f":"IF(DAY(CalendarDay)=1,CONCATENATE(\"Minggu \",WEEKNUM(CalendarDay),\"/Hari \",CalendarDay-DATE(YEAR(CalendarDay),1,0)),CONCATENATE(\"Hari \",CalendarDay-DATE(YEAR(CalendarDay),1,0)))","v":"Hari 329"},{"$f":"IF(DAY(CalendarDay)=1,CONCATENATE(\"Minggu \",WEEKNUM(CalendarDay),\"/Hari \",CalendarDay-DATE(YEAR(CalendarDay),1,0)),CONCATENATE(\"Hari \",CalendarDay-DATE(YEAR(CalendarDay),1,0)))","v":"Hari 330"},{"$f":"IF(DAY(CalendarDay)=1,CONCATENATE(\"Minggu \",WEEKNUM(CalendarDay),\"/Hari \",CalendarDay-DATE(YEAR(CalendarDay),1,0)),CONCATENATE(\"Hari \",CalendarDay-DATE(YEAR(CalendarDay),1,0)))","v":"Hari 331"},{"$f":"IF(DAY(CalendarDay)=1,CONCATENATE(\"Minggu \",WEEKNUM(CalendarDay),\"/Hari \",CalendarDay-DATE(YEAR(CalendarDay),1,0)),CONCATENATE(\"Hari \",CalendarDay-DATE(YEAR(CalendarDay),1,0)))","v":"Hari 332"},{"$f":"IF(DAY(CalendarDay)=1,CONCATENATE(\"Minggu \",WEEKNUM(CalendarDay),\"/Hari \",CalendarDay-DATE(YEAR(CalendarDay),1,0)),CONCATENATE(\"Hari \",CalendarDay-DATE(YEAR(CalendarDay),1,0)))","v":"Hari 333"},{"$f":"IF(DAY(CalendarDay)=1,CONCATENATE(\"Minggu \",WEEKNUM(CalendarDay),\"/Hari \",CalendarDay-DATE(YEAR(CalendarDay),1,0)),CONCATENATE(\"Hari \",CalendarDay-DATE(YEAR(CalendarDay),1,0)))","v":"Hari 334"},{"$f":"IF(DAY(CalendarDay)=1,CONCATENATE(\"Minggu \",WEEKNUM(CalendarDay),\"/Hari \",CalendarDay-DATE(YEAR(CalendarDay),1,0)),CONCATENATE(\"Hari \",CalendarDay-DATE(YEAR(CalendarDay),1,0)))","v":"Minggu 48/Hari 335"}]
[]
[null,null,{"$f":"DaysAndWeeks+DATE(CalendarYear,12,1)-WEEKDAY(DATE(CalendarYear,12,1),(WeekStart=\"SEN\")+1)+8","v":"2018-12-02"},"2018-12-03","2018-12-04","2018-12-05","2018-12-06","2018-12-07","2018-12-08"]
[null,null,{"$f":"IF(WEEKDAY(CalendarDay)=WeekStartValue,CONCATENATE(\"Minggu \",WEEKNUM(CalendarDay),\"/Hari \",CalendarDay-DATE(YEAR(CalendarDay),1,0)),CONCATENATE(\"Hari \",CalendarDay-DATE(YEAR(CalendarDay),1,0)))","v":"Minggu 49/Hari 336"},{"$f":"IF(WEEKDAY(CalendarDay)=WeekStartValue,CONCATENATE(\"Minggu \",WEEKNUM(CalendarDay),\"/Hari \",CalendarDay-DATE(YEAR(CalendarDay),1,0)),CONCATENATE(\"Hari \",CalendarDay-DATE(YEAR(CalendarDay),1,0)))","v":"Hari 337"},{"$f":"IF(WEEKDAY(CalendarDay)=WeekStartValue,CONCATENATE(\"Minggu \",WEEKNUM(CalendarDay),\"/Hari \",CalendarDay-DATE(YEAR(CalendarDay),1,0)),CONCATENATE(\"Hari \",CalendarDay-DATE(YEAR(CalendarDay),1,0)))","v":"Hari 338"},{"$f":"IF(WEEKDAY(CalendarDay)=WeekStartValue,CONCATENATE(\"Minggu \",WEEKNUM(CalendarDay),\"/Hari \",CalendarDay-DATE(YEAR(CalendarDay),1,0)),CONCATENATE(\"Hari \",CalendarDay-DATE(YEAR(CalendarDay),1,0)))","v":"Hari 339"},{"$f":"IF(WEEKDAY(CalendarDay)=WeekStartValue,CONCATENATE(\"Minggu \",WEEKNUM(CalendarDay),\"/Hari \",CalendarDay-DATE(YEAR(CalendarDay),1,0)),CONCATENATE(\"Hari \",CalendarDay-DATE(YEAR(CalendarDay),1,0)))","v":"Hari 340"},{"$f":"IF(WEEKDAY(CalendarDay)=WeekStartValue,CONCATENATE(\"Minggu \",WEEKNUM(CalendarDay),\"/Hari \",CalendarDay-DATE(YEAR(CalendarDay),1,0)),CONCATENATE(\"Hari \",CalendarDay-DATE(YEAR(CalendarDay),1,0)))","v":"Hari 341"},{"$f":"IF(WEEKDAY(CalendarDay)=WeekStartValue,CONCATENATE(\"Minggu \",WEEKNUM(CalendarDay),\"/Hari \",CalendarDay-DATE(YEAR(CalendarDay),1,0)),CONCATENATE(\"Hari \",CalendarDay-DATE(YEAR(CalendarDay),1,0)))","v":"Hari 342"}]
[]
[null,null,{"$f":"DaysAndWeeks+DATE(CalendarYear,12,1)-WEEKDAY(DATE(CalendarYear,12,1),(WeekStart=\"SEN\")+1)+15","v":"2018-12-09"},"2018-12-10","2018-12-11","2018-12-12","2018-12-13","2018-12-14","2018-12-15"]
[null,null,{"$f":"IF(WEEKDAY(CalendarDay)=WeekStartValue,CONCATENATE(\"Minggu \",WEEKNUM(CalendarDay),\"/Hari \",CalendarDay-DATE(YEAR(CalendarDay),1,0)),CONCATENATE(\"Hari \",CalendarDay-DATE(YEAR(CalendarDay),1,0)))","v":"Minggu 50/Hari 343"},{"$f":"IF(WEEKDAY(CalendarDay)=WeekStartValue,CONCATENATE(\"Minggu \",WEEKNUM(CalendarDay),\"/Hari \",CalendarDay-DATE(YEAR(CalendarDay),1,0)),CONCATENATE(\"Hari \",CalendarDay-DATE(YEAR(CalendarDay),1,0)))","v":"Hari 344"},{"$f":"IF(WEEKDAY(CalendarDay)=WeekStartValue,CONCATENATE(\"Minggu \",WEEKNUM(CalendarDay),\"/Hari \",CalendarDay-DATE(YEAR(CalendarDay),1,0)),CONCATENATE(\"Hari \",CalendarDay-DATE(YEAR(CalendarDay),1,0)))","v":"Hari 345"},{"$f":"IF(WEEKDAY(CalendarDay)=WeekStartValue,CONCATENATE(\"Minggu \",WEEKNUM(CalendarDay),\"/Hari \",CalendarDay-DATE(YEAR(CalendarDay),1,0)),CONCATENATE(\"Hari \",CalendarDay-DATE(YEAR(CalendarDay),1,0)))","v":"Hari 346"},{"$f":"IF(WEEKDAY(CalendarDay)=WeekStartValue,CONCATENATE(\"Minggu \",WEEKNUM(CalendarDay),\"/Hari \",CalendarDay-DATE(YEAR(CalendarDay),1,0)),CONCATENATE(\"Hari \",CalendarDay-DATE(YEAR(CalendarDay),1,0)))","v":"Hari 347"},{"$f":"IF(WEEKDAY(CalendarDay)=WeekStartValue,CONCATENATE(\"Minggu \",WEEKNUM(CalendarDay),\"/Hari \",CalendarDay-DATE(YEAR(CalendarDay),1,0)),CONCATENATE(\"Hari \",CalendarDay-DATE(YEAR(CalendarDay),1,0)))","v":"Hari 348"},{"$f":"IF(WEEKDAY(CalendarDay)=WeekStartValue,CONCATENATE(\"Minggu \",WEEKNUM(CalendarDay),\"/Hari \",CalendarDay-DATE(YEAR(CalendarDay),1,0)),CONCATENATE(\"Hari \",CalendarDay-DATE(YEAR(CalendarDay),1,0)))","v":"Hari 349"}]
[]
[null,null,{"$f":"DaysAndWeeks+DATE(CalendarYear,12,1)-WEEKDAY(DATE(CalendarYear,12,1),(WeekStart=\"SEN\")+1)+22","v":"2018-12-16"},"2018-12-17","2018-12-18","2018-12-19","2018-12-20","2018-12-21","2018-12-22"]
[null,null,{"$f":"IF(WEEKDAY(CalendarDay)=WeekStartValue,CONCATENATE(\"Minggu \",WEEKNUM(CalendarDay),\"/Hari \",CalendarDay-DATE(YEAR(CalendarDay),1,0)),CONCATENATE(\"Hari \",CalendarDay-DATE(YEAR(CalendarDay),1,0)))","v":"Minggu 51/Hari 350"},{"$f":"IF(WEEKDAY(CalendarDay)=WeekStartValue,CONCATENATE(\"Minggu \",WEEKNUM(CalendarDay),\"/Hari \",CalendarDay-DATE(YEAR(CalendarDay),1,0)),CONCATENATE(\"Hari \",CalendarDay-DATE(YEAR(CalendarDay),1,0)))","v":"Hari 351"},{"$f":"IF(WEEKDAY(CalendarDay)=WeekStartValue,CONCATENATE(\"Minggu \",WEEKNUM(CalendarDay),\"/Hari \",CalendarDay-DATE(YEAR(CalendarDay),1,0)),CONCATENATE(\"Hari \",CalendarDay-DATE(YEAR(CalendarDay),1,0)))","v":"Hari 352"},{"$f":"IF(WEEKDAY(CalendarDay)=WeekStartValue,CONCATENATE(\"Minggu \",WEEKNUM(CalendarDay),\"/Hari \",CalendarDay-DATE(YEAR(CalendarDay),1,0)),CONCATENATE(\"Hari \",CalendarDay-DATE(YEAR(CalendarDay),1,0)))","v":"Hari 353"},{"$f":"IF(WEEKDAY(CalendarDay)=WeekStartValue,CONCATENATE(\"Minggu \",WEEKNUM(CalendarDay),\"/Hari \",CalendarDay-DATE(YEAR(CalendarDay),1,0)),CONCATENATE(\"Hari \",CalendarDay-DATE(YEAR(CalendarDay),1,0)))","v":"Hari 354"},{"$f":"IF(WEEKDAY(CalendarDay)=WeekStartValue,CONCATENATE(\"Minggu \",WEEKNUM(CalendarDay),\"/Hari \",CalendarDay-DATE(YEAR(CalendarDay),1,0)),CONCATENATE(\"Hari \",CalendarDay-DATE(YEAR(CalendarDay),1,0)))","v":"Hari 355"},{"$f":"IF(WEEKDAY(CalendarDay)=WeekStartValue,CONCATENATE(\"Minggu \",WEEKNUM(CalendarDay),\"/Hari \",CalendarDay-DATE(YEAR(CalendarDay),1,0)),CONCATENATE(\"Hari \",CalendarDay-DATE(YEAR(CalendarDay),1,0)))","v":"Hari 356"}]
[]
[null,null,{"$f":"DaysAndWeeks+DATE(CalendarYear,12,1)-WEEKDAY(DATE(CalendarYear,12,1),(WeekStart=\"SEN\")+1)+29","v":"2018-12-23"},"2018-12-24","2018-12-25","2018-12-26","2018-12-27","2018-12-28","2018-12-29"]
[null,null,{"$f":"IF(WEEKDAY(CalendarDay)=WeekStartValue,CONCATENATE(\"Minggu \",WEEKNUM(CalendarDay),\"/Hari \",CalendarDay-DATE(YEAR(CalendarDay),1,0)),CONCATENATE(\"Hari \",CalendarDay-DATE(YEAR(CalendarDay),1,0)))","v":"Minggu 52/Hari 357"},{"$f":"IF(WEEKDAY(CalendarDay)=WeekStartValue,CONCATENATE(\"Minggu \",WEEKNUM(CalendarDay),\"/Hari \",CalendarDay-DATE(YEAR(CalendarDay),1,0)),CONCATENATE(\"Hari \",CalendarDay-DATE(YEAR(CalendarDay),1,0)))","v":"Hari 358"},{"$f":"IF(WEEKDAY(CalendarDay)=WeekStartValue,CONCATENATE(\"Minggu \",WEEKNUM(CalendarDay),\"/Hari \",CalendarDay-DATE(YEAR(CalendarDay),1,0)),CONCATENATE(\"Hari \",CalendarDay-DATE(YEAR(CalendarDay),1,0)))","v":"Hari 359"},{"$f":"IF(WEEKDAY(CalendarDay)=WeekStartValue,CONCATENATE(\"Minggu \",WEEKNUM(CalendarDay),\"/Hari \",CalendarDay-DATE(YEAR(CalendarDay),1,0)),CONCATENATE(\"Hari \",CalendarDay-DATE(YEAR(CalendarDay),1,0)))","v":"Hari 360"},{"$f":"IF(WEEKDAY(CalendarDay)=WeekStartValue,CONCATENATE(\"Minggu \",WEEKNUM(CalendarDay),\"/Hari \",CalendarDay-DATE(YEAR(CalendarDay),1,0)),CONCATENATE(\"Hari \",CalendarDay-DATE(YEAR(CalendarDay),1,0)))","v":"Hari 361"},{"$f":"IF(WEEKDAY(CalendarDay)=WeekStartValue,CONCATENATE(\"Minggu \",WEEKNUM(CalendarDay),\"/Hari \",CalendarDay-DATE(YEAR(CalendarDay),1,0)),CONCATENATE(\"Hari \",CalendarDay-DATE(YEAR(CalendarDay),1,0)))","v":"Hari 362"},{"$f":"IF(WEEKDAY(CalendarDay)=WeekStartValue,CONCATENATE(\"Minggu \",WEEKNUM(CalendarDay),\"/Hari \",CalendarDay-DATE(YEAR(CalendarDay),1,0)),CONCATENATE(\"Hari \",CalendarDay-DATE(YEAR(CalendarDay),1,0)))","v":"Hari 363"}]
[{"$nulls":4},"CATATAN"]
[]
[null,null,{"$f":"DaysAndWeeks+DATE(CalendarYear,12,1)-WEEKDAY(DATE(CalendarYear,12,1),(WeekStart=\"SEN\")+1)+36","v":"2018-12-30"},"2018-12-31"]
[null,null,{"$f":"IF(WEEKDAY(CalendarDay)=WeekStartValue,CONCATENATE(\"Minggu \",WEEKNUM(CalendarDay),\"/Hari \",CalendarDay-DATE(YEAR(CalendarDay),1,0)),CONCATENATE(\"Hari \",CalendarDay-DATE(YEAR(CalendarDay),1,0)))","v":"Minggu 53/Hari 364"},{"$f":"IF(WEEKDAY(CalendarDay)=WeekStartValue,CONCATENATE(\"Minggu \",WEEKNUM(CalendarDay),\"/Hari \",CalendarDay-DATE(YEAR(CalendarDay),1,0)),CONCATENATE(\"Hari \",CalendarDay-DATE(YEAR(CalendarDay),1,0)))","v":"Hari 365"}]